Workbook

Sheet Yield (2)
A1: Таймфрейм: Количество дней: 60 | C1: Yield USA 2Y | H1: <<< | J1: Yield USA 10Y | P1: <<< | R1: Yield Canada 2Y | W1: <<< | Y1: Yield Canada 10Y | AE1: <<< | AG1: Yield Brazil 2Y | AL1: <<< | AN1: Yield Brazil 10Y | AT1: <<< | AV1: Yield Mexico 3Y | BA1: <<< | BC1: Yield Mexico 10Y | BI1: <<< | BK1: Yield United Kingdom 2Y | BP1: <<< | BR1: Yield United Kingdom 10Y | BX1: <<< | BZ1: Yield Germany 2Y | CE1: <<< | CG1: Yield Germany 10Y | CM1: <<< | CO1: Yield Russia 2Y | CT1: <<< | CV1: Yield Russia 10Y | DB1: <<< | DD1: Yield Switzerland 2Y | DI1: <<< | DK1: Yield Switzerland 10Y | DQ1: <<< | DS1: Yield Australia 2Y | DX1: <<< | DZ1: Yield Australia 10Y | EF1: <<< | EH1: Yield New Zealand 5Y | EM1: <<< | EO1: Yield New Zealand 10Y | EU1: <<< | EW1: Yield Japan 2Y | FB1: <<< | FD1: Yield Japan 10Y | FJ1: <<< | FL1: Yield China 2Y | FQ1: <<< | FS1: Yield China 10Y | FY1: <<< | GA1: Yield South Africa 5Y | GF1: <<< | GH1: Yield South Africa 10Y | GN1: <<<
A2: Количество дней: 40 | C2: Date | D2: Close | E2: Open | F2: High | G2: Low | H2: Change % | J2: Date | K2: Close | L2: Open | M2: High | N2: Low | O2: Change % | P2: Спред 10-2 | R2: Date | S2: Close | T2: Open | U2: High | V2: Low | W2: Change % | Y2: Date | Z2: Close | AA2: Open | AB2: High | AC2: Low | AD2: Change % | AE2: Спред 10-2 | AG2: Date | AH2: Close | AI2: Open | AJ2: High | AK2: Low | AL2: Change % | AN2: Date | AO2: Close | AP2: Open | AQ2: High | AR2: Low | AS2: Change % | AT2: Спред 10-2 | AV2: Date | AW2: Close | AX2: Open | AY2: High | AZ2: Low | BA2: Change % | BC2: Date | BD2: Close | BE2: Open | BF2: High | BG2: Low | BH2: Change % | BI2: Спред 10-3 | BK2: Date | BL2: Close | BM2: Open | BN2: High | BO2: Low | BP2: Change % | BR2: Date | BS2: Close | BT2: Open | BU2: High | BV2: Low | BW2: Change % | BX2: Спред 10-2 | BZ2: Date | CA2: Close | CB2: Open | CC2: High | CD2: Low | CE2: Change % | CG2: Date | CH2: Close | CI2: Open | CJ2: High | CK2: Low | CL2: Change % | CM2: Спред 10-2 | CO2: Date | CP2: Close | CQ2: Open | CR2: High | CS2: Low | CT2: Change % | CV2: Date | CW2: Close | CX2: Open | CY2: High | CZ2: Low | DA2: Change % | DB2: Спред 10-2 | DD2: Date | DE2: Close | DF2: Open | DG2: High | DH2: Low | DI2: Change % | DK2: Date | DL2: Close | DM2: Open | DN2: High | DO2: Low | DP2: Change % | DQ2: Спред 10-2 | DS2: Date | DT2: Close | DU2: Open | DV2: High | DW2: Low | DX2: Change % | DZ2: Date | EA2: Close | EB2: Open | EC2: High | ED2: Low | EE2: Change % | EF2: Спред 10-2 | EH2: Date | EI2: Close | EJ2: Open | EK2: High | EL2: Low | EM2: Change % | EO2: Date | EP2: Close | EQ2: Open | ER2: High | ES2: Low | ET2: Change % | EU2: Спред 10-5 | EW2: Date | EX2: Close | EY2: Open | EZ2: High | FA2: Low | FB2: Change % | FD2: Date | FE2: Close | FF2: Open | FG2: High | FH2: Low | FI2: Change % | FJ2: Спред 10-2 | FL2: Date | FM2: Close | FN2: Open | FO2: High | FP2: Low | FQ2: Change % | FS2: Date | FT2: Close | FU2: Open | FV2: High | FW2: Low | FX2: Change % | FY2: Спред 10-2 | GA2: Date | GB2: Close | GC2: Open | GD2: High | GE2: Low | GF2: Change % | GH2: Date | GI2: Close | GJ2: Open | GK2: High | GL2: Low | GM2: Change % | GN2: Спред 10-5
A3: Yield USA 2Y | C3: 12.01.2015 | D3: 0.569 | E3: 0.569 | F3: 0.573 | G3: 0.565 | H3: 0.0071 | J3: 12.01.2015 | K3: 1.969 | L3: 1.957 | M3: 1.974 | N3: 1.955 | O3: 0.0097 | P3: 1.4 | R3: 12.01.2015 | S3: 0.957 | T3: 0.957 | U3: 0.957 | V3: 0.952 | W3: 0.0106 | Y3: 12.01.2015 | Z3: 1.673 | AA3: 1.663 | AB3: 1.677 | AC3: 1.661 | AD3: -0.0024 | AE3: =Z3-VLOOKUP(Y3, Диапазон_3, 2, 0) -> 0.716 | AG3: 10.01.2015 | AH3: 12.53 | AI3: 12.53 | AJ3: 12.53 | AK3: 12.53 | AL3: 0 | AN3: 09.01.2015 | AO3: 12.185 | AP3: 12.37 | AQ3: 12.37 | AR3: 12.18 | AS3: -0.0126 | AT3: -0.34 | AV3: 10.01.2015 | AW3: 4.14 | AX3: 4.14 | AY3: 4.14 | AZ3: 4.14 | BA3: 0 | BC3: 10.01.2015 | BD3: 5.63 | BE3: 5.63 | BF3: 5.63 | BG3: 5.63 | BH3: 0 | BI3: 1.49 | BK3: 12.01.2015 | BL3: 0.41 | BM3: 0.415 | BN3: 0.424 | BO3: 0.389 | BP3: -0.0049 | BR3: 12.01.2015 | BS3: 1.609 | BT3: 1.597 | BU3: 1.619 | BV3: 1.597 | BW3: 0.0075 | BX3: 1.2 | BZ3: 12.01.2015 | CA3: -0.105 | CB3: -0.116 | CC3: -0.104 | CD3: -0.122 | CE3: -0.1532 | CG3: 12.01.2015 | CH3: 0.51 | CI3: 0.493 | CJ3: 0.513 | CK3: 0.489 | CL3: 0.0581 | CM3: 0.62 | CO3: 12.01.2015 | CP3: 16.42 | CQ3: 15.51 | CR3: 16.43 | CS3: 15.51 | CT3: 0.0587 | CV3: 12.01.2015 | CW3: 14.59 | CX3: 14.67 | CY3: 14.67 | CZ3: 14.59 | DA3: 0.0355 | DB3: -1.83 | DD3: 12.01.2015 | DE3: -0.378 | DF3: -0.395 | DG3: -0.35 | DH3: -0.406 | DI3: -0.0207 | DK3: 12.01.2015 | DL3: 0.225 | DM3: 0.229 | DN3: 0.233 | DO3: 0.212 | DP3: -0.0466 | DQ3: 0.6 | DS3: 12.01.2015 | DT3: 2.211 | DU3: 2.178 | DV3: 2.221 | DW3: 2.178 | DX3: 0.0142 | DZ3: 12.01.2015 | EA3: 2.717 | EB3: 2.686 | EC3: 2.725 | ED3: 2.686 | EE3: 0.0119 | EF3: 0.51 | EH3: 12.01.2015 | EI3: 3.53 | EJ3: 3.545 | EK3: 3.545 | EL3: 3.53 | EM3: -0.0028 | EO3: 12.01.2015 | EP3: 3.565 | EQ3: 3.585 | ER3: 3.585 | ES3: 3.565 | ET3: -0.0042 | EU3: 0.04 | EW3: 09.01.2015 | EX3: -0.021 | EY3: -0.017 | EZ3: -0.011 | FA3: -0.047 | FB3: 0.5 | FD3: 09.01.2015 | FE3: 0.282 | FF3: 0.292 | FG3: 0.303 | FH3: 0.276 | FI3: -0.0242 | FJ3: 0.3 | FL3: 12.01.2015 | FM3: 3.346 | FN3: 3.4 | FO3: 3.4 | FP3: 3.345 | FQ3: -0.0009 | FS3: 12.01.2015 | FT3: 3.659 | FU3: 3.7 | FV3: 3.7 | FW3: 3.645 | FX3: -0.0005 | FY3: 0.31 | GA3: 12.01.2015 | GB3: 7.005 | GC3: 7.025 | GD3: 7.025 | GE3: 6.955 | GF3: -0.0099 | GH3: 12.01.2015 | GI3: 7.34 | GJ3: 7.36 | GK3: 7.36 | GL3: 7.29 | GM3: -0.0088 | GN3: 0.34
A4: Yield USA 10Y | C4: 11.01.2015 | D4: 0.565 | E4: 0.565 | F4: 0.565 | G4: 0.565 | H4: 0 | J4: 11.01.2015 | K4: 1.95 | L4: 1.95 | M4: 1.95 | N4: 1.95 | O4: 0.0001 | P4: 1.39 | R4: 09.01.2015 | S4: 0.947 | T4: 0.982 | U4: 0.987 | V4: 0.947 | W4: -0.0356 | Y4: 10.01.2015 | Z4: 1.677 | AA4: 1.656 | AB4: 1.677 | AC4: 1.656 | AD4: 0.0139 | AE4: =Z4-VLOOKUP(Y4, Диапазон_3, 2, 0) ->  | AG4: 09.01.2015 | AH4: 12.53 | AI4: 12.68 | AJ4: 12.87 | AK4: 12.52 | AL4: -0.0219 | AN4: 08.01.2015 | AO4: 12.34 | AP4: 12.36 | AQ4: 12.42 | AR4: 12.22 | AS4: -0.0028 | AT4: -0.19 | AV4: 09.01.2015 | AW4: 4.14 | AX4: 4.16 | AY4: 4.19 | AZ4: 4.14 | BA4: -0.0024 | BC4: 09.01.2015 | BD4: 5.63 | BE4: 5.62 | BF4: 5.65 | BG4: 5.6 | BH4: -0.0018 | BI4: 1.49 | BK4: 11.01.2015 | BL4: 0.412 | BM4: 0.412 | BN4: 0.412 | BO4: 0.412 | BP4: 0.0326 | BR4: 10.01.2015 | BS4: 1.597 | BT4: 1.598 | BU4: 1.598 | BV4: 1.597 | BW4: 0.0057 | BX4: 1.19 | BZ4: 09.01.2015 | CA4: -0.124 | CB4: -0.104 | CC4: -0.099 | CD4: -0.129 | CE4: 0.1698 | CG4: 09.01.2015 | CH4: 0.482 | CI4: 0.506 | CJ4: 0.527 | CK4: 0.479 | CL4: -0.0586 | CM4: 0.61 | CO4: 11.01.2015 | CP4: 15.51 | CQ4: 15.51 | CR4: 15.51 | CS4: 15.51 | CT4: -0.0159 | CV4: 09.01.2015 | CW4: 14.09 | CX4: 13.82 | CY4: 14.09 | CZ4: 13.82 | DA4: 0 | DB4: -1.42 | DD4: 09.01.2015 | DE4: -0.386 | DF4: -0.413 | DG4: -0.28 | DH4: -0.413 | DI4: 0.0904 | DK4: 09.01.2015 | DL4: 0.236 | DM4: 0.205 | DN4: 0.251 | DO4: 0.197 | DP4: 0.1741 | DQ4: 0.62 | DS4: 11.01.2015 | DT4: 2.18 | DU4: 2.192 | DV4: 2.211 | DW4: 2.175 | DX4: -0.0055 | DZ4: 11.01.2015 | EA4: 2.685 | EB4: 2.716 | EC4: 2.731 | ED4: 2.681 | EE4: -0.0114 | EF4: 0.51 | EH4: 11.01.2015 | EI4: 3.54 | EJ4: 3.57 | EK4: 3.57 | EL4: 3.54 | EM4: -0.0084 | EO4: 11.01.2015 | EP4: 3.58 | EQ4: 3.61 | ER4: 3.61 | ES4: 3.58 | ET4: -0.0056 | EU4: 0.04 | EW4: 08.01.2015 | EX4: -0.014 | EY4: -0.019 | EZ4: -0.011 | FA4: -0.019 | FB4: 0.1667 | FD4: 08.01.2015 | FE4: 0.289 | FF4: 0.301 | FG4: 0.309 | FH4: 0.284 | FI4: -0.0334 | FJ4: 0.3 | FL4: 09.01.2015 | FM4: 3.349 | FN4: 3.353 | FO4: 3.368 | FP4: 3.34 | FQ4: -0.0018 | FS4: 09.01.2015 | FT4: 3.661 | FU4: 3.663 | FV4: 3.67 | FW4: 3.661 | FX4: -0.0005 | FY4: 0.31 | GA4: 09.01.2015 | GB4: 7.075 | GC4: 7.075 | GD4: 7.075 | GE4: 7.075 | GF4: 0.0028 | GH4: 09.01.2015 | GI4: 7.405 | GJ4: 7.405 | GK4: 7.405 | GL4: 7.405 | GM4: -0.002 | GN4: 0.33
A5: Yield Canada 2Y | C5: 09.01.2015 | D5: 0.565 | E5: 0.609 | F5: 0.633 | G5: 0.549 | H5: -0.0722 | J5: 09.01.2015 | K5: 1.95 | L5: 2.018 | M5: 2.028 | N5: 1.943 | O5: -0.0337 | P5: 1.39 | R5: 08.01.2015 | S5: 0.982 | T5: 0.975 | U5: 0.987 | V5: 0.973 | W5: 0.0103 | Y5: 09.01.2015 | Z5: 1.654 | AA5: 1.718 | AB5: 1.722 | AC5: 1.651 | AD5: -0.0305 | AE5: =Z5-VLOOKUP(Y5, Диапазон_3, 2, 0) -> 0.707 | AG5: 08.01.2015 | AH5: 12.81 | AI5: 12.69 | AJ5: 12.92 | AK5: 12.61 | AL5: 0.0091 | AN5: 07.01.2015 | AO5: 12.375 | AP5: 12.25 | AQ5: 12.375 | AR5: 12.25 | AS5: 0.0102 | AT5: -0.44 | AV5: 08.01.2015 | AW5: 4.15 | AX5: 4.19 | AY5: 4.19 | AZ5: 4.13 | BA5: -0.0095 | BC5: 08.01.2015 | BD5: 5.64 | BE5: 5.69 | BF5: 5.71 | BG5: 5.56 | BH5: -0.0088 | BI5: 1.49 | BK5: 09.01.2015 | BL5: 0.399 | BM5: 0.417 | BN5: 0.436 | BO5: 0.388 | BP5: -0.0721 | BR5: 09.01.2015 | BS5: 1.588 | BT5: 1.634 | BU5: 1.646 | BV5: 1.588 | BW5: -0.0341 | BX5: 1.19 | BZ5: 08.01.2015 | CA5: -0.106 | CB5: -0.11 | CC5: -0.093 | CD5: -0.11 | CE5: 0.0816 | CG5: 08.01.2015 | CH5: 0.512 | CI5: 0.485 | CJ5: 0.516 | CK5: 0.474 | CL5: 0.0847 | CM5: 0.62 | CO5: 10.01.2015 | CP5: 15.76 | CQ5: 15.79 | CR5: 15.88 | CS5: 15.51 | CT5: -0.0019 | CV5: 08.01.2015 | CW5: 14.09 | CX5: 13.82 | CY5: 14.09 | CZ5: 13.82 | DA5: 0 | DB5: -1.67 | DD5: 08.01.2015 | DE5: -0.354 | DF5: -0.343 | DG5: -0.315 | DH5: -0.354 | DI5: 0.0321 | DK5: 08.01.2015 | DL5: 0.201 | DM5: 0.192 | DN5: 0.213 | DO5: 0.192 | DP5: 0.0524 | DQ5: 0.56 | DS5: 10.01.2015 | DT5: 2.192 | DU5: 2.186 | DV5: 2.192 | DW5: 2.186 | DX5: -0.0036 | DZ5: 10.01.2015 | EA5: 2.716 | EB5: 2.72 | EC5: 2.72 | ED5: 2.716 | EE5: -0.0051 | EF5: 0.52 | EH5: 09.01.2015 | EI5: 3.57 | EJ5: 3.565 | EK5: 3.57 | EL5: 3.555 | EM5: 0.0042 | EO5: 09.01.2015 | EP5: 3.6 | EQ5: 3.6 | ER5: 3.61 | ES5: 3.59 | ET5: 0.0028 | EU5: 0.03 | EW5: 07.01.2015 | EX5: -0.012 | EY5: -0.019 | EZ5: -0.006 | FA5: -0.019 | FB5: -0.2941 | FD5: 07.01.2015 | FE5: 0.299 | FF5: 0.286 | FG5: 0.304 | FH5: 0.269 | FI5: 0.0382 | FJ5: 0.31 | FL5: 08.01.2015 | FM5: 3.355 | FN5: 3.361 | FO5: 3.392 | FP5: 3.35 | FQ5: -0.003 | FS5: 08.01.2015 | FT5: 3.663 | FU5: 3.658 | FV5: 3.676 | FW5: 3.658 | FX5: 0.0014 | FY5: 0.31 | GA5: 08.01.2015 | GB5: 7.055 | GC5: 7.055 | GD5: 7.055 | GE5: 7.055 | GF5: -0.0147 | GH5: 08.01.2015 | GI5: 7.42 | GJ5: 7.42 | GK5: 7.42 | GL5: 7.42 | GM5: -0.0113 | GN5: 0.37
A6: Yield Canada 10Y | C6: 08.01.2015 | D6: 0.609 | E6: 0.621 | F6: 0.641 | G6: 0.601 | H6: -0.013 | J6: 08.01.2015 | K6: 2.018 | L6: 1.976 | M6: 2.03 | N6: 1.968 | O6: 0.0249 | P6: 1.41 | R6: 07.01.2015 | S6: 0.972 | T6: 0.963 | U6: 0.977 | V6: 0.953 | W6: 0.0167 | Y6: 08.01.2015 | Z6: 1.706 | AA6: 1.666 | AB6: 1.719 | AC6: 1.652 | AD6: 0.0308 | AE6: =Z6-VLOOKUP(Y6, Диапазон_3, 2, 0) -> 0.724 | AG6: 07.01.2015 | AH6: 12.695 | AI6: 12.71 | AJ6: 12.87 | AK6: 12.63 | AL6: -0.0012 | AN6: 06.01.2015 | AO6: 12.25 | AP6: 12.36 | AQ6: 12.36 | AR6: 12.225 | AS6: -0.0024 | AT6: -0.45 | AV6: 07.01.2015 | AW6: 4.19 | AX6: 4.27 | AY6: 4.27 | AZ6: 4.19 | BA6: -0.0141 | BC6: 07.01.2015 | BD6: 5.69 | BE6: 5.77 | BF6: 5.77 | BG6: 5.67 | BH6: -0.0087 | BI6: 1.5 | BK6: 08.01.2015 | BL6: 0.43 | BM6: 0.435 | BN6: 0.453 | BO6: 0.41 | BP6: 0.0386 | BR6: 08.01.2015 | BS6: 1.644 | BT6: 1.617 | BU6: 1.656 | BV6: 1.605 | BW6: 0.0243 | BX6: 1.21 | BZ6: 07.01.2015 | CA6: -0.098 | CB6: -0.098 | CC6: -0.093 | CD6: -0.113 | CE6: -0.0667 | CG6: 07.01.2015 | CH6: 0.472 | CI6: 0.464 | CJ6: 0.486 | CK6: 0.432 | CL6: 0.0419 | CM6: 0.57 | CO6: 09.01.2015 | CP6: 15.79 | CQ6: 15.76 | CR6: 16.07 | CS6: 15.46 | CT6: 0 | CV6: 06.01.2015 | CW6: 14.09 | CX6: 13.82 | CY6: 14.09 | CZ6: 13.82 | DA6: 0.005 | DB6: -1.7 | DD6: 07.01.2015 | DE6: -0.343 | DF6: -0.299 | DG6: -0.299 | DH6: -0.343 | DI6: 0.1173 | DK6: 07.01.2015 | DL6: 0.191 | DM6: 0.219 | DN6: 0.233 | DO6: 0.172 | DP6: -0.1357 | DQ6: 0.53 | DS6: 09.01.2015 | DT6: 2.2 | DU6: 2.204 | DV6: 2.225 | DW6: 2.191 | DX6: -0.0099 | DZ6: 09.01.2015 | EA6: 2.73 | EB6: 2.743 | EC6: 2.748 | ED6: 2.72 | EE6: -0.0055 | EF6: 0.53 | EH6: 08.01.2015 | EI6: 3.555 | EJ6: 3.525 | EK6: 3.565 | EL6: 3.515 | EM6: 0.0114 | EO6: 08.01.2015 | EP6: 3.59 | EQ6: 3.555 | ER6: 3.6 | ES6: 3.545 | ET6: 0.0127 | EU6: 0.03 | EW6: 06.01.2015 | EX6: -0.017 | EY6: -0.023 | EZ6: -0.016 | FA6: -0.029 | FB6: -0.1905 | FD6: 06.01.2015 | FE6: 0.288 | FF6: 0.318 | FG6: 0.319 | FH6: 0.287 | FI6: -0.1138 | FJ6: 0.31 | FL6: 07.01.2015 | FM6: 3.365 | FN6: 3.38 | FO6: 3.385 | FP6: 3.365 | FQ6: -0.0033 | FS6: 07.01.2015 | FT6: 3.658 | FU6: 3.654 | FV6: 3.673 | FW6: 3.654 | FX6: 0.0011 | FY6: 0.29 | GA6: 07.01.2015 | GB6: 7.16 | GC6: 7.16 | GD6: 7.16 | GE6: 7.16 | GF6: -0.0117 | GH6: 07.01.2015 | GI6: 7.505 | GJ6: 7.505 | GK6: 7.505 | GL6: 7.505 | GM6: -0.0105 | GN6: 0.35
A7: Yield Brazil 2Y | C7: 07.01.2015 | D7: 0.617 | E7: 0.629 | F7: 0.657 | G7: 0.605 | H7: -0.0191 | J7: 07.01.2015 | K7: 1.969 | L7: 1.944 | M7: 2.009 | N7: 1.926 | O7: 0.016 | P7: 1.35 | R7: 06.01.2015 | S7: 0.956 | T7: 0.966 | U7: 0.98 | V7: 0.949 | W7: -0.0255 | Y7: 07.01.2015 | Z7: 1.655 | AA7: 1.646 | AB7: 1.681 | AC7: 1.629 | AD7: 0.011 | AE7: =Z7-VLOOKUP(Y7, Диапазон_3, 2, 0) -> 0.683 | AG7: 06.01.2015 | AH7: 12.71 | AI7: 12.99 | AJ7: 12.99 | AK7: 12.68 | AL7: -0.0117 | AN7: 05.01.2015 | AO7: 12.28 | AP7: 12.36 | AQ7: 12.42 | AR7: 12.26 | AS7: -0.0045 | AT7: -0.43 | AV7: 06.01.2015 | AW7: 4.25 | AX7: 4.3 | AY7: 4.31 | AZ7: 4.25 | BA7: -0.0116 | BC7: 06.01.2015 | BD7: 5.74 | BE7: 5.8 | BF7: 5.83 | BG7: 5.75 | BH7: -0.012 | BI7: 1.49 | BK7: 07.01.2015 | BL7: 0.414 | BM7: 0.412 | BN7: 0.447 | BO7: 0.385 | BP7: 0.0508 | BR7: 07.01.2015 | BS7: 1.605 | BT7: 1.587 | BU7: 1.634 | BV7: 1.567 | BW7: 0.0145 | BX7: 1.19 | BZ7: 06.01.2015 | CA7: -0.105 | CB7: -0.098 | CC7: -0.093 | CD7: -0.108 | CE7: 0.0294 | CG7: 06.01.2015 | CH7: 0.453 | CI7: 0.507 | CJ7: 0.514 | CK7: 0.442 | CL7: -0.117 | CM7: 0.56 | CO7: 08.01.2015 | CP7: 15.79 | CQ7: 15.76 | CR7: 16.07 | CS7: 15.46 | CT7: -0.0013 | CV7: 05.01.2015 | CW7: 14.02 | CX7: 13.82 | CY7: 14.09 | CZ7: 13.82 | DA7: 0 | DB7: -1.77 | DD7: 06.01.2015 | DE7: -0.307 | DF7: -0.301 | DG7: -0.301 | DH7: -0.307 | DI7: 0.0302 | DK7: 06.01.2015 | DL7: 0.221 | DM7: 0.291 | DN7: 0.291 | DO7: 0.213 | DP7: -0.2107 | DQ7: 0.53 | DS7: 08.01.2015 | DT7: 2.222 | DU7: 2.145 | DV7: 2.225 | DW7: 2.145 | DX7: 0.0316 | DZ7: 08.01.2015 | EA7: 2.745 | EB7: 2.687 | EC7: 2.75 | ED7: 2.686 | EE7: 0.0227 | EF7: 0.52 | EH7: 07.01.2015 | EI7: 3.515 | EJ7: 3.565 | EK7: 3.565 | EL7: 3.495 | EM7: -0.014 | EO7: 07.01.2015 | EP7: 3.545 | EQ7: 3.605 | ER7: 3.605 | ES7: 3.535 | ET7: -0.0166 | EU7: 0.03 | EW7: 05.01.2015 | EX7: -0.021 | EY7: -0.019 | EZ7: -0.016 | FA7: -0.021 | FB7: 0.3125 | FD7: 05.01.2015 | FE7: 0.325 | FF7: 0.329 | FG7: 0.33 | FH7: 0.322 | FI7: -0.0031 | FJ7: 0.35 | FL7: 06.01.2015 | FM7: 3.376 | FN7: 3.368 | FO7: 3.402 | FP7: 3.368 | FQ7: -0.0012 | FS7: 06.01.2015 | FT7: 3.654 | FU7: 3.66 | FV7: 3.663 | FW7: 3.65 | FX7: 0.0019 | FY7: 0.28 | GA7: 06.01.2015 | GB7: 7.245 | GC7: 7.245 | GD7: 7.245 | GE7: 7.245 | GF7: -0.019 | GH7: 06.01.2015 | GI7: 7.585 | GJ7: 7.585 | GK7: 7.585 | GL7: 7.585 | GM7: -0.02 | GN7: 0.34
A8: Yield Brazil 10Y | C8: 06.01.2015 | D8: 0.629 | E8: 0.657 | F8: 0.657 | G8: 0.581 | H8: -0.0541 | J8: 06.01.2015 | K8: 1.938 | L8: 2.037 | M8: 2.039 | N8: 1.887 | O8: -0.0472 | P8: 1.31 | R8: 05.01.2015 | S8: 0.981 | T8: 1.001 | U8: 1.01 | V8: 0.981 | W8: -0.02 | Y8: 06.01.2015 | Z8: 1.637 | AA8: 1.683 | AB8: 1.687 | AC8: 1.602 | AD8: -0.0319 | AE8: =Z8-VLOOKUP(Y8, Диапазон_3, 2, 0) -> 0.681 | AG8: 05.01.2015 | AH8: 12.86 | AI8: 12.95 | AJ8: 13.06 | AK8: 12.83 | AL8: -0.0069 | AN8: 02.01.2015 | AO8: 12.335 | AP8: 12.4 | AQ8: 12.4 | AR8: 12.31 | AS8: -0.0072 | AT8: -0.52 | AV8: 05.01.2015 | AW8: 4.3 | AX8: 4.35 | AY8: 4.36 | AZ8: 4.31 | BA8: -0.016 | BC8: 05.01.2015 | BD8: 5.81 | BE8: 5.84 | BF8: 5.84 | BG8: 5.78 | BH8: -0.0034 | BI8: 1.51 | BK8: 06.01.2015 | BL8: 0.394 | BM8: 0.414 | BN8: 0.442 | BO8: 0.383 | BP8: -0.0729 | BR8: 06.01.2015 | BS8: 1.582 | BT8: 1.66 | BU8: 1.66 | BV8: 1.572 | BW8: -0.0493 | BX8: 1.19 | BZ8: 05.01.2015 | CA8: -0.102 | CB8: -0.098 | CC8: -0.093 | CD8: -0.108 | CE8: -0.0467 | CG8: 05.01.2015 | CH8: 0.513 | CI8: 0.499 | CJ8: 0.522 | CK8: 0.492 | CL8: 0.0301 | CM8: 0.62 | CO8: 07.01.2015 | CP8: 15.81 | CQ8: 15.79 | CR8: 15.81 | CS8: 15.78 | CT8: 0.0013 | CV8: 02.01.2015 | CW8: 14.02 | CX8: 14.08 | CY8: 14.08 | CZ8: 14.02 | DA8: -0.005 | DB8: -1.79 | DD8: 05.01.2015 | DE8: -0.298 | DF8: -0.292 | DG8: -0.292 | DH8: -0.298 | DI8: 0.5204 | DK8: 05.01.2015 | DL8: 0.28 | DM8: 0.328 | DN8: 0.329 | DO8: 0.275 | DP8: -0.2391 | DQ8: 0.58 | DS8: 07.01.2015 | DT8: 2.154 | DU8: 2.146 | DV8: 2.159 | DW8: 2.112 | DX8: -0.0137 | DZ8: 07.01.2015 | EA8: 2.684 | EB8: 2.671 | EC8: 2.684 | ED8: 2.64 | EE8: -0.0154 | EF8: 0.53 | EH8: 06.01.2015 | EI8: 3.565 | EJ8: 3.575 | EK8: 3.575 | EL8: 3.535 | EM8: 0 | EO8: 06.01.2015 | EP8: 3.605 | EQ8: 3.635 | ER8: 3.635 | ES8: 3.585 | ET8: -0.0055 | EU8: 0.04 | EW8: 30.12.2014 | EX8: -0.016 | EY8: -0.022 | EZ8: -0.011 | FA8: -0.023 | FB8: 0.1429 | FD8: 30.12.2014 | FE8: 0.326 | FF8: 0.317 | FG8: 0.343 | FH8: 0.314 | FI8: -0.0031 | FJ8: 0.34 | FL8: 05.01.2015 | FM8: 3.38 | FN8: 3.368 | FO8: 3.389 | FP8: 3.368 | FQ8: 0.0012 | FS8: 05.01.2015 | FT8: 3.647 | FU8: 3.657 | FV8: 3.66 | FW8: 3.647 | FX8: -0.0008 | FY8: 0.27 | GA8: 05.01.2015 | GB8: 7.385 | GC8: 7.385 | GD8: 7.385 | GE8: 7.385 | GF8: -0.0074 | GH8: 05.01.2015 | GI8: 7.74 | GJ8: 7.74 | GK8: 7.74 | GL8: 7.74 | GM8: -0.0102 | GN8: 0.36
A9: Yield Mexico 3Y | C9: 05.01.2015 | D9: 0.665 | E9: 0.665 | F9: 0.697 | G9: 0.661 | H9: 0.0006 | J9: 05.01.2015 | K9: 2.034 | L9: 2.102 | M9: 2.133 | N9: 2.027 | O9: -0.0323 | P9: 1.37 | R9: 02.01.2015 | S9: 1.001 | T9: 1.011 | U9: 1.045 | V9: 0.996 | W9: -0.0099 | Y9: 05.01.2015 | Z9: 1.691 | AA9: 1.755 | AB9: 1.764 | AC9: 1.689 | AD9: -0.0304 | AE9: =Z9-VLOOKUP(Y9, Диапазон_3, 2, 0) -> 0.71 | AG9: 02.01.2015 | AH9: 12.95 | AI9: 13.02 | AJ9: 13.13 | AK9: 12.95 | AL9: -0.0061 | AN9: 31.12.2014 | AO9: 12.425 | AP9: 12.425 | AQ9: 12.425 | AR9: 12.425 | AS9: 0 | AT9: -0.52 | AV9: 03.01.2015 | AW9: 4.37 | AX9: 4.37 | AY9: 4.37 | AZ9: 4.37 | BA9: 0.0046 | BC9: 03.01.2015 | BD9: 5.83 | BE9: 5.83 | BF9: 5.83 | BG9: 5.83 | BH9: 0.0034 | BI9: 1.46 | BK9: 05.01.2015 | BL9: 0.425 | BM9: 0.411 | BN9: 0.458 | BO9: 0.39 | BP9: -0.0093 | BR9: 05.01.2015 | BS9: 1.664 | BT9: 1.723 | BU9: 1.766 | BV9: 1.658 | BW9: -0.032 | BX9: 1.24 | BZ9: 02.01.2015 | CA9: -0.107 | CB9: -0.103 | CC9: -0.098 | CD9: -0.112 | CE9: 0.019 | CG9: 02.01.2015 | CH9: 0.498 | CI9: 0.546 | CJ9: 0.555 | CK9: 0.493 | CL9: -0.0795 | CM9: 0.61 | CO9: 06.01.2015 | CP9: 15.79 | CQ9: 15.76 | CR9: 16.07 | CS9: 15.46 | CT9: 0 | CV9: 30.12.2014 | CW9: 14.09 | CX9: 13.82 | CY9: 14.09 | CZ9: 13.82 | DA9: 0.0195 | DB9: -1.7 | DD9: 02.01.2015 | DE9: -0.196 | DF9: -0.305 | DG9: -0.196 | DH9: -0.311 | DI9: -0.3574 | DK9: 02.01.2015 | DL9: 0.368 | DM9: 0.366 | DN9: 0.368 | DO9: 0.366 | DP9: 0 | DQ9: 0.56 | DS9: 06.01.2015 | DT9: 2.184 | DU9: 2.163 | DV9: 2.194 | DW9: 2.126 | DX9: -0.0077 | DZ9: 06.01.2015 | EA9: 2.726 | EB9: 2.728 | EC9: 2.743 | ED9: 2.713 | EE9: -0.0187 | EF9: 0.54 | EH9: 05.01.2015 | EI9: 3.565 | EJ9: 3.62 | EK9: 3.62 | EL9: 3.565 | EM9: -0.0083 | EO9: 05.01.2015 | EP9: 3.625 | EQ9: 3.68 | ER9: 3.68 | ES9: 3.625 | ET9: -0.0082 | EU9: 0.06 | EW9: 29.12.2014 | EX9: -0.014 | EY9: -0.016 | EZ9: -0.011 | FA9: -0.017 | FB9: 0.4 | FD9: 29.12.2014 | FE9: 0.327 | FF9: 0.327 | FG9: 0.336 | FH9: 0.324 | FI9: -0.0091 | FJ9: 0.34 | FL9: 04.01.2015 | FM9: 3.376 | FN9: 3.369 | FO9: 3.4 | FP9: 3.365 | FQ9: 0.0021 | FS9: 04.01.2015 | FT9: 3.65 | FU9: 3.648 | FV9: 3.7 | FW9: 3.648 | FX9: 0.0005 | FY9: 0.27 | GA9: 02.01.2015 | GB9: 7.44 | GC9: 7.44 | GD9: 7.44 | GE9: 7.44 | GF9: 0 | GH9: 02.01.2015 | GI9: 7.82 | GJ9: 7.82 | GK9: 7.82 | GL9: 7.82 | GM9: 0.0026 | GN9: 0.38
A10: Yield Mexico 10Y | C10: 04.01.2015 | D10: 0.665 | E10: 0.661 | F10: 0.665 | G10: 0.661 | H10: -0.0066 | J10: 04.01.2015 | K10: 2.102 | L10: 2.114 | M10: 2.114 | N10: 2.1 | O10: -0.0058 | P10: 1.44 | R10: 31.12.2014 | S10: 1.011 | T10: 1.02 | U10: 1.02 | V10: 1.006 | W10: -0.0069 | Y10: 02.01.2015 | Z10: 1.744 | AA10: 1.811 | AB10: 1.818 | AC10: 1.744 | AD10: -0.0262 | AE10: =Z10-VLOOKUP(Y10, Диапазон_3, 2, 0) -> 0.743 | AG10: 31.12.2014 | AH10: 13.03 | AI10: 13.03 | AJ10: 13.03 | AK10: 13.03 | AL10: 0 | AN10: 30.12.2014 | AO10: 12.425 | AP10: 12.42 | AQ10: 12.425 | AR10: 12.42 | AS10: 0.0012 | AT10: -0.6 | AV10: 02.01.2015 | AW10: 4.35 | AX10: 4.4 | AY10: 4.4 | AZ10: 4.33 | BA10: -0.0046 | BC10: 02.01.2015 | BD10: 5.81 | BE10: 5.86 | BF10: 5.87 | BG10: 5.82 | BH10: -0.0034 | BI10: 1.46 | BK10: 04.01.2015 | BL10: 0.429 | BM10: 0.429 | BN10: 0.429 | BO10: 0.429 | BP10: 0.0047 | BR10: 03.01.2015 | BS10: 1.719 | BT10: 1.73 | BU10: 1.73 | BV10: 1.719 | BW10: 0 | BX10: 1.29 | BZ10: 31.12.2014 | CA10: -0.105 | CB10: -0.105 | CC10: -0.105 | CD10: -0.105 | CE10: 0 | CG10: 31.12.2014 | CH10: 0.541 | CI10: 0.541 | CJ10: 0.544 | CK10: 0.54 | CL10: 0.0019 | CM10: 0.65 | CO10: 05.01.2015 | CP10: 15.79 | CQ10: 15.76 | CR10: 16.07 | CS10: 15.46 | CT10: 0.0181 | CV10: 29.12.2014 | CW10: 13.82 | CX10: 13.41 | CY10: 13.82 | CZ10: 13.41 | DA10: 0.0022 | DB10: -1.97 | DD10: 30.12.2014 | DE10: -0.305 | DF10: -0.305 | DG10: -0.3 | DH10: -0.305 | DI10: 0.5885 | DK10: 30.12.2014 | DL10: 0.368 | DM10: 0.359 | DN10: 0.379 | DO10: 0.359 | DP10: 0.011 | DQ10: 0.67 | DS10: 05.01.2015 | DT10: 2.201 | DU10: 2.181 | DV10: 2.208 | DW10: 2.161 | DX10: 0.0005 | DZ10: 05.01.2015 | EA10: 2.778 | EB10: 2.799 | EC10: 2.813 | ED10: 2.749 | EE10: 0.0007 | EF10: 0.58 | EH10: 04.01.2015 | EI10: 3.595 | EJ10: 3.62 | EK10: 3.62 | EL10: 3.595 | EM10: -0.0042 | EO10: 04.01.2015 | EP10: 3.655 | EQ10: 3.68 | ER10: 3.68 | ES10: 3.655 | ET10: -0.0041 | EU10: 0.06 | EW10: 28.12.2014 | EX10: -0.01 | EY10: -0.01 | EZ10: -0.01 | FA10: -0.01 | FB10: 1 | FD10: 28.12.2014 | FE10: 0.33 | FF10: 0.33 | FG10: 0.33 | FH10: 0.33 | FI10: -0.003 | FJ10: 0.34 | FL10: 01.01.2015 | FM10: 3.369 | FN10: 3.369 | FO10: 3.369 | FP10: 3.369 | FQ10: 0 | FS10: 01.01.2015 | FT10: 3.648 | FU10: 3.648 | FV10: 3.648 | FW10: 3.648 | FX10: 0 | FY10: 0.28 | GA10: 31.12.2014 | GB10: 7.44 | GC10: 7.44 | GD10: 7.44 | GE10: 7.44 | GF10: -0.0053 | GH10: 31.12.2014 | GI10: 7.8 | GJ10: 7.8 | GK10: 7.8 | GL10: 7.8 | GM10: -0.0064 | GN10: 0.36
A11: Yield United Kingdom 2Y | C11: 02.01.2015 | D11: 0.669 | E11: 0.704 | F11: 0.712 | G11: 0.661 | H11: -0.0051 | J11: 02.01.2015 | K11: 2.114 | L11: 2.2 | M11: 2.213 | N11: 2.102 | O11: -0.0259 | P11: 1.45 | R11: 30.12.2014 | S11: 1.018 | T11: 1.034 | U11: 1.035 | V11: 1.011 | W11: -0.0155 | Y11: 31.12.2014 | Z11: 1.791 | AA11: 1.803 | AB11: 1.812 | AC11: 1.781 | AD11: -0.0116 | AE11: =Z11-VLOOKUP(Y11, Диапазон_3, 2, 0) -> 0.78 | AG11: 30.12.2014 | AH11: 13.03 | AI11: 13.06 | AJ11: 13.11 | AK11: 12.99 | AL11: -0.0023 | AN11: 28.12.2014 | AO11: 12.41 | AP11: 12.41 | AQ11: 12.41 | AR11: 12.41 | AS11: 0 | AT11: -0.62 | AV11: 01.01.2015 | AW11: 4.37 | AX11: 4.37 | AY11: 4.37 | AZ11: 4.37 | BA11: 0.0046 | BC11: 01.01.2015 | BD11: 5.83 | BE11: 5.83 | BF11: 5.83 | BG11: 5.83 | BH11: 0.0052 | BI11: 1.46 | BK11: 03.01.2015 | BL11: 0.427 | BM11: 0.429 | BN11: 0.429 | BO11: 0.427 | BP11: 0.0215 | BR11: 02.01.2015 | BS11: 1.719 | BT11: 1.775 | BU11: 1.808 | BV11: 1.717 | BW11: -0.0211 | BX11: 1.29 | BZ11: 30.12.2014 | CA11: -0.105 | CB11: -0.108 | CC11: -0.092 | CD11: -0.11 | CE11: 0.0825 | CG11: 30.12.2014 | CH11: 0.54 | CI11: 0.545 | CJ11: 0.566 | CK11: 0.536 | CL11: -0.0217 | CM11: 0.65 | CO11: 04.01.2015 | CP11: 15.51 | CQ11: 15.51 | CR11: 15.51 | CS11: 15.51 | CT11: -0.0159 | CV11: 28.12.2014 | CW11: 13.79 | CX11: 13.79 | CY11: 13.79 | CZ11: 13.79 | DA11: 0 | DB11: -1.72 | DD11: 29.12.2014 | DE11: -0.192 | DF11: -0.187 | DG11: -0.187 | DH11: -0.312 | DI11: 0.0909 | DK11: 29.12.2014 | DL11: 0.364 | DM11: 0.368 | DN11: 0.385 | DO11: 0.363 | DP11: -0.0446 | DQ11: 0.56 | DS11: 04.01.2015 | DT11: 2.2 | DU11: 2.199 | DV11: 2.213 | DW11: 2.161 | DX11: 0.0005 | DZ11: 04.01.2015 | EA11: 2.776 | EB11: 2.805 | EC11: 2.813 | ED11: 2.762 | EE11: -0.0103 | EF11: 0.58 | EH11: 31.12.2014 | EI11: 3.61 | EJ11: 3.645 | EK11: 3.645 | EL11: 3.61 | EM11: -0.0096 | EO11: 31.12.2014 | EP11: 3.67 | EQ11: 3.705 | ER11: 3.705 | ES11: 3.67 | ET11: -0.0094 | EU11: 0.06 | EW11: 26.12.2014 | EX11: -0.005 | EY11: -0.009 | EZ11: 0.002 | FA11: -0.014 | FB11: -0.8438 | FD11: 26.12.2014 | FE11: 0.331 | FF11: 0.313 | FG11: 0.331 | FH11: 0.304 | FI11: 0.0409 | FJ11: 0.34 | FL11: 31.12.2014 | FM11: 3.369 | FN11: 3.373 | FO11: 3.373 | FP11: 3.365 | FQ11: -0.0065 | FS11: 31.12.2014 | FT11: 3.648 | FU11: 3.661 | FV11: 3.661 | FW11: 3.648 | FX11: 0.0008 | FY11: 0.28 | GA11: 30.12.2014 | GB11: 7.48 | GC11: 7.48 | GD11: 7.48 | GE11: 7.48 | GF11: -0.002 | GH11: 30.12.2014 | GI11: 7.85 | GJ11: 7.85 | GK11: 7.85 | GL11: 7.85 | GM11: -0.0013 | GN11: 0.37
A12: Yield United Kingdom 10Y | C12: 01.01.2015 | D12: 0.672 | E12: 0.672 | F12: 0.672 | G12: 0.672 | H12: 0.0006 | J12: 01.01.2015 | K12: 2.17 | L12: 2.17 | M12: 2.17 | N12: 2.17 | O12: 0.0001 | P12: 1.5 | R12: 29.12.2014 | S12: 1.034 | T12: 1.054 | U12: 1.058 | V12: 1.034 | W12: -0.0227 | Y12: 30.12.2014 | Z12: 1.812 | AA12: 1.844 | AB12: 1.848 | AC12: 1.798 | AD12: -0.0115 | AE12: =Z12-VLOOKUP(Y12, Диапазон_3, 2, 0) -> 0.794 | AG12: 29.12.2014 | AH12: 13.06 | AI12: 13.095 | AJ12: 13.095 | AK12: 12.98 | AL12: 0.0035 | AN12: 26.12.2014 | AO12: 12.41 | AP12: 12.5 | AQ12: 12.5 | AR12: 12.41 | AS12: -0.0072 | AT12: -0.65 | AV12: 31.12.2014 | AW12: 4.35 | AX12: 4.39 | AY12: 4.39 | AZ12: 4.37 | BA12: -0.0023 | BC12: 31.12.2014 | BD12: 5.8 | BE12: 5.88 | BF12: 5.88 | BG12: 5.83 | BH12: -0.0085 | BI12: 1.45 | BK12: 02.01.2015 | BL12: 0.418 | BM12: 0.435 | BN12: 0.475 | BO12: 0.395 | BP12: -0.0628 | BR12: 31.12.2014 | BS12: 1.756 | BT12: 1.785 | BU12: 1.787 | BV12: 1.747 | BW12: -0.0212 | BX12: 1.34 | BZ12: 29.12.2014 | CA12: -0.097 | CB12: -0.087 | CC12: -0.082 | CD12: -0.104 | CE12: 0.0319 | CG12: 29.12.2014 | CH12: 0.552 | CI12: 0.594 | CJ12: 0.601 | CK12: 0.542 | CL12: -0.0644 | CM12: 0.65 | CO12: 03.01.2015 | CP12: 15.76 | CQ12: 16.07 | CR12: 16.07 | CS12: 15.51 | CT12: -0.0193 | CV12: 26.12.2014 | CW12: 13.79 | CX12: 13.52 | CY12: 13.79 | CZ12: 13.5 | DA12: 0 | DB12: -1.97 | DD12: 28.12.2014 | DE12: -0.176 | DF12: -0.176 | DG12: -0.176 | DH12: -0.176 | DI12: 0 | DK12: 28.12.2014 | DL12: 0.381 | DM12: 0.381 | DN12: 0.381 | DO12: 0.381 | DP12: 0 | DQ12: 0.56 | DS12: 03.01.2015 | DT12: 2.199 | DU12: 2.198 | DV12: 2.213 | DW12: 2.198 | DX12: -0.013 | DZ12: 03.01.2015 | EA12: 2.805 | EB12: 2.805 | EC12: 2.805 | ED12: 2.805 | EE12: -0.0237 | EF12: 0.61 | EH12: 30.12.2014 | EI12: 3.645 | EJ12: 3.68 | EK12: 3.68 | EL12: 3.645 | EM12: -0.0068 | EO12: 30.12.2014 | EP12: 3.705 | EQ12: 3.75 | ER12: 3.75 | ES12: 3.705 | ET12: -0.0094 | EU12: 0.06 | EW12: 25.12.2014 | EX12: -0.032 | EY12: -0.031 | EZ12: -0.019 | FA12: -0.036 | FB12: -0.0857 | FD12: 25.12.2014 | FE12: 0.318 | FF12: 0.332 | FG12: 0.339 | FH12: 0.314 | FI12: -0.0536 | FJ12: 0.35 | FL12: 30.12.2014 | FM12: 3.391 | FN12: 3.415 | FO12: 3.415 | FP12: 3.391 | FQ12: -0.0117 | FS12: 30.12.2014 | FT12: 3.645 | FU12: 3.67 | FV12: 3.67 | FW12: 3.645 | FX12: -0.0011 | FY12: 0.25 | GA12: 29.12.2014 | GB12: 7.495 | GC12: 7.495 | GD12: 7.495 | GE12: 7.495 | GF12: -0.004 | GH12: 29.12.2014 | GI12: 7.86 | GJ12: 7.86 | GK12: 7.86 | GL12: 7.86 | GM12: -0.0038 | GN12: 0.37
A13: Yield Germany 2Y | C13: 31.12.2014 | D13: 0.672 | E13: 0.684 | F13: 0.688 | G13: 0.668 | H13: -0.0233 | J13: 31.12.2014 | K13: 2.17 | L13: 2.183 | M13: 2.19 | N13: 2.165 | O13: -0.01 | P13: 1.5 | R13: 28.12.2014 | S13: 1.058 | T13: 1.058 | U13: 1.058 | V13: 1.058 | W13: 0 | Y13: 29.12.2014 | Z13: 1.833 | AA13: 1.924 | AB13: 1.928 | AC13: 1.833 | AD13: -0.0418 | AE13: =Z13-VLOOKUP(Y13, Диапазон_3, 2, 0) -> 0.799 | AG13: 28.12.2014 | AH13: 13.015 | AI13: 13.015 | AJ13: 13.015 | AK13: 13.015 | AL13: 0 | AN13: 24.12.2014 | AO13: 12.5 | AP13: 12.48 | AQ13: 12.5 | AR13: 12.48 | AS13: 0.0016 | AT13: -0.52 | AV13: 30.12.2014 | AW13: 4.36 | AX13: 4.4 | AY13: 4.41 | AZ13: 4.36 | BA13: 0.0023 | BC13: 30.12.2014 | BD13: 5.85 | BE13: 5.92 | BF13: 5.92 | BG13: 5.88 | BH13: -0.0085 | BI13: 1.49 | BK13: 31.12.2014 | BL13: 0.446 | BM13: 0.434 | BN13: 0.453 | BO13: 0.41 | BP13: 0.0068 | BR13: 30.12.2014 | BS13: 1.794 | BT13: 1.827 | BU13: 1.846 | BV13: 1.774 | BW13: -0.0137 | BX13: 1.35 | BZ13: 28.12.2014 | CA13: -0.094 | CB13: -0.094 | CC13: -0.094 | CD13: -0.094 | CE13: 0 | CG13: 28.12.2014 | CH13: 0.59 | CI13: 0.59 | CJ13: 0.59 | CK13: 0.59 | CL13: 0 | CM13: 0.68 | CO13: 02.01.2015 | CP13: 16.07 | CQ13: 15.76 | CR13: 16.07 | CS13: 15.76 | CT13: 0.0197 | CV13: 25.12.2014 | CW13: 13.79 | CX13: 13.39 | CY13: 13.79 | CZ13: 13.39 | DA13: 0.0162 | DB13: -2.28 | DD13: 24.12.2014 | DE13: -0.176 | DF13: -0.176 | DG13: -0.176 | DH13: -0.176 | DI13: 0.0353 | DK13: 24.12.2014 | DL13: 0.381 | DM13: 0.381 | DN13: 0.381 | DO13: 0.381 | DP13: 0.0053 | DQ13: 0.56 | DS13: 02.01.2015 | DT13: 2.228 | DU13: 2.192 | DV13: 2.238 | DW13: 2.161 | DX13: 0.0178 | DZ13: 02.01.2015 | EA13: 2.873 | EB13: 2.819 | EC13: 2.882 | ED13: 2.81 | EE13: 0.0145 | EF13: 0.65 | EH13: 29.12.2014 | EI13: 3.67 | EJ13: 3.68 | EK13: 3.68 | EL13: 3.67 | EM13: -0.0027 | EO13: 29.12.2014 | EP13: 3.74 | EQ13: 3.74 | ER13: 3.75 | ES13: 3.74 | ET13: 0 | EU13: 0.07 | EW13: 24.12.2014 | EX13: -0.035 | EY13: -0.029 | EZ13: -0.023 | FA13: -0.036 | FB13: 0.0294 | FD13: 24.12.2014 | FE13: 0.336 | FF13: 0.341 | FG13: 0.345 | FH13: 0.335 | FI13: -0.0147 | FJ13: 0.37 | FL13: 29.12.2014 | FM13: 3.431 | FN13: 3.48 | FO13: 3.48 | FP13: 3.418 | FQ13: 0.0053 | FS13: 29.12.2014 | FT13: 3.649 | FU13: 3.7 | FV13: 3.7 | FW13: 3.635 | FX13: 0 | FY13: 0.22 | GA13: 28.12.2014 | GB13: 7.525 | GC13: 7.525 | GD13: 7.525 | GE13: 7.525 | GF13: 0 | GH13: 28.12.2014 | GI13: 7.89 | GJ13: 7.89 | GK13: 7.89 | GL13: 7.89 | GM13: 0 | GN13: 0.36
A14: Yield Germany 10Y | C14: 30.12.2014 | D14: 0.688 | E14: 0.708 | F14: 0.712 | G14: 0.676 | H14: -0.0337 | J14: 30.12.2014 | K14: 2.192 | L14: 2.202 | M14: 2.209 | N14: 2.167 | O14: -0.0054 | P14: 1.5 | R14: 24.12.2014 | S14: 1.058 | T14: 1.056 | U14: 1.07 | V14: 1.051 | W14: -0.0009 | Y14: 28.12.2014 | Z14: 1.913 | AA14: 1.913 | AB14: 1.913 | AC14: 1.913 | AD14: 0 | AE14: =Z14-VLOOKUP(Y14, Диапазон_3, 2, 0) -> 0.855 | AG14: 26.12.2014 | AH14: 13.015 | AI14: 12.965 | AJ14: 13.05 | AK14: 12.95 | AL14: -0.0004 | AN14: 23.12.2014 | AO14: 12.48 | AP14: 12.4 | AQ14: 12.48 | AR14: 12.4 | AS14: -0.0056 | AT14: -0.54 | AV14: 29.12.2014 | AW14: 4.35 | AX14: 4.38 | AY14: 4.41 | AZ14: 4.37 | BA14: -0.0091 | BC14: 29.12.2014 | BD14: 5.9 | BE14: 5.9 | BF14: 5.95 | BG14: 5.88 | BH14: 0 | BI14: 1.55 | BK14: 30.12.2014 | BL14: 0.443 | BM14: 0.449 | BN14: 0.48 | BO14: 0.409 | BP14: -0.0306 | BR14: 29.12.2014 | BS14: 1.819 | BT14: 1.857 | BU14: 1.87 | BV14: 1.801 | BW14: -0.036 | BX14: 1.38 | BZ14: 24.12.2014 | CA14: -0.094 | CB14: -0.094 | CC14: -0.094 | CD14: -0.094 | CE14: -0.0309 | CG14: 24.12.2014 | CH14: 0.59 | CI14: 0.596 | CJ14: 0.597 | CK14: 0.59 | CL14: -0.0084 | CM14: 0.68 | CO14: 01.01.2015 | CP14: 15.76 | CQ14: 15.81 | CR14: 15.81 | CS14: 15.51 | CT14: -0.0032 | CV14: 24.12.2014 | CW14: 13.57 | CX14: 13.19 | CY14: 13.57 | CZ14: 12.99 | DA14: 0.0288 | DB14: -2.19 | DD14: 23.12.2014 | DE14: -0.17 | DF14: -0.273 | DG14: -0.154 | DH14: -0.289 | DI14: 0.018 | DK14: 23.12.2014 | DL14: 0.379 | DM14: 0.377 | DN14: 0.394 | DO14: 0.366 | DP14: 0.0557 | DQ14: 0.55 | DS14: 01.01.2015 | DT14: 2.189 | DU14: 2.184 | DV14: 2.205 | DW14: 2.161 | DX14: 0.0027 | DZ14: 01.01.2015 | EA14: 2.832 | EB14: 2.817 | EC14: 2.839 | ED14: 2.805 | EE14: 0.0007 | EF14: 0.64 | EH14: 28.12.2014 | EI14: 3.68 | EJ14: 3.68 | EK14: 3.68 | EL14: 3.68 | EM14: 0 | EO14: 28.12.2014 | EP14: 3.74 | EQ14: 3.75 | ER14: 3.75 | ES14: 3.74 | ET14: 0 | EU14: 0.06 | EW14: 22.12.2014 | EX14: -0.034 | EY14: -0.037 | EZ14: -0.027 | FA14: -0.042 | FB14: 0.8889 | FD14: 22.12.2014 | FE14: 0.341 | FF14: 0.345 | FG14: 0.351 | FH14: 0.341 | FI14: -0.0367 | FJ14: 0.38 | FL14: 28.12.2014 | FM14: 3.413 | FN14: 3.413 | FO14: 3.413 | FP14: 3.413 | FQ14: 0 | FS14: 28.12.2014 | FT14: 3.649 | FU14: 3.649 | FV14: 3.649 | FW14: 3.649 | FX14: 0 | FY14: 0.24 | GA14: 24.12.2014 | GB14: 7.525 | GC14: 7.525 | GD14: 7.525 | GE14: 7.525 | GF14: 0.008 | GH14: 24.12.2014 | GI14: 7.89 | GJ14: 7.89 | GK14: 7.89 | GL14: 7.89 | GM14: 0.007 | GN14: 0.36
A15: Yield Russia 2Y | C15: 29.12.2014 | D15: 0.712 | E15: 0.739 | F15: 0.743 | G15: 0.704 | H15: -0.0421 | J15: 29.12.2014 | K15: 2.204 | L15: 2.248 | M15: 2.253 | N15: 2.193 | O15: -0.0196 | P15: 1.49 | R15: 23.12.2014 | S15: 1.059 | T15: 1.018 | U15: 1.069 | V15: 1.018 | W15: 0.0372 | Y15: 24.12.2014 | Z15: 1.913 | AA15: 1.905 | AB15: 1.934 | AC15: 1.891 | AD15: 0.0042 | AE15: =Z15-VLOOKUP(Y15, Диапазон_3, 2, 0) -> 0.855 | AG15: 24.12.2014 | AH15: 13.02 | AI15: 13 | AJ15: 13.02 | AK15: 12.965 | AL15: 0.0015 | AN15: 22.12.2014 | AO15: 12.55 | AP15: 12.55 | AQ15: 12.55 | AR15: 12.55 | AS15: -0.0016 | AT15: -0.47 | AV15: 28.12.2014 | AW15: 4.39 | AX15: 4.39 | AY15: 4.39 | AZ15: 4.39 | BA15: 0 | BC15: 28.12.2014 | BD15: 5.9 | BE15: 5.9 | BF15: 5.9 | BG15: 5.9 | BH15: 0 | BI15: 1.51 | BK15: 29.12.2014 | BL15: 0.457 | BM15: 0.465 | BN15: 0.491 | BO15: 0.427 | BP15: -0.0749 | BR15: 28.12.2014 | BS15: 1.887 | BT15: 1.887 | BU15: 1.887 | BV15: 1.887 | BW15: 0 | BX15: 1.43 | BZ15: 23.12.2014 | CA15: -0.097 | CB15: -0.081 | CC15: -0.081 | CD15: -0.099 | CE15: 0.0659 | CG15: 23.12.2014 | CH15: 0.595 | CI15: 0.6 | CJ15: 0.604 | CK15: 0.582 | CL15: -0.0149 | CM15: 0.69 | CO15: 31.12.2014 | CP15: 15.81 | CQ15: 15.76 | CR15: 15.81 | CS15: 15.63 | CT15: 0.0032 | CV15: 23.12.2014 | CW15: 13.19 | CX15: 13.17 | CY15: 13.19 | CZ15: 12.99 | DA15: 0.0053 | DB15: -2.62 | DD15: 22.12.2014 | DE15: -0.167 | DF15: -0.167 | DG15: -0.151 | DH15: -0.292 | DI15: 0.2652 | DK15: 22.12.2014 | DL15: 0.359 | DM15: 0.34 | DN15: 0.377 | DO15: 0.323 | DP15: 0.0621 | DQ15: 0.53 | DS15: 31.12.2014 | DT15: 2.183 | DU15: 2.227 | DV15: 2.227 | DW15: 2.168 | DX15: -0.0167 | DZ15: 31.12.2014 | EA15: 2.83 | EB15: 2.881 | EC15: 2.899 | ED15: 2.826 | EE15: -0.0146 | EF15: 0.65 | EH15: 24.12.2014 | EI15: 3.68 | EJ15: 3.68 | EK15: 3.68 | EL15: 3.68 | EM15: 0.0055 | EO15: 24.12.2014 | EP15: 3.74 | EQ15: 3.73 | ER15: 3.75 | ES15: 3.725 | ET15: 0.0027 | EU15: 0.06 | EW15: 19.12.2014 | EX15: -0.018 | EY15: -0.007 | EZ15: -0.002 | FA15: -0.021 | FB15: 0.8 | FD15: 19.12.2014 | FE15: 0.354 | FF15: 0.356 | FG15: 0.359 | FH15: 0.347 | FI15: 0.0057 | FJ15: 0.37 | FL15: 26.12.2014 | FM15: 3.413 | FN15: 3.43 | FO15: 3.433 | FP15: 3.403 | FQ15: -0.0133 | FS15: 26.12.2014 | FT15: 3.649 | FU15: 3.648 | FV15: 3.657 | FW15: 3.638 | FX15: 0.0044 | FY15: 0.24 | GA15: 23.12.2014 | GB15: 7.465 | GC15: 7.465 | GD15: 7.465 | GE15: 7.465 | GF15: -0.002 | GH15: 23.12.2014 | GI15: 7.835 | GJ15: 7.835 | GK15: 7.835 | GL15: 7.835 | GM15: -0.0013 | GN15: 0.37
A16: Yield Russia 10Y | C16: 28.12.2014 | D16: 0.743 | E16: 0.743 | F16: 0.743 | H16: 0.0004 | J16: 28.12.2014 | K16: 2.248 | L16: 2.252 | M16: 2.252 | N16: 2.248 | O16: -0.0017 | P16: 1.51 | R16: 22.12.2014 | S16: 1.021 | T16: 1.012 | U16: 1.031 | V16: 1.012 | W16: 0.0089 | Y16: 23.12.2014 | Z16: 1.905 | AA16: 1.804 | AB16: 1.917 | AC16: 1.793 | AD16: 0.0613 | AE16: =Z16-VLOOKUP(Y16, Диапазон_3, 2, 0) -> 0.846 | AG16: 23.12.2014 | AH16: 13 | AI16: 12.97 | AJ16: 13.02 | AK16: 12.92 | AL16: 0.0046 | AN16: 19.12.2014 | AO16: 12.57 | AP16: 12.61 | AQ16: 12.61 | AR16: 12.552 | AS16: -0.0044 | AT16: -0.43 | AV16: 27.12.2014 | AW16: 4.39 | AX16: 4.39 | AY16: 4.39 | AZ16: 4.39 | BA16: 0.0046 | BC16: 27.12.2014 | BD16: 5.9 | BE16: 5.9 | BF16: 5.9 | BG16: 5.9 | BH16: 0.0051 | BI16: 1.51 | BK16: 28.12.2014 | BL16: 0.494 | BM16: 0.494 | BN16: 0.494 | BO16: 0.494 | BP16: 0.0082 | BR16: 27.12.2014 | BS16: 1.887 | BT16: 1.886 | BU16: 1.887 | BV16: 1.883 | BW16: 0.0027 | BX16: 1.39 | BZ16: 22.12.2014 | CA16: -0.091 | CB16: -0.076 | CC16: -0.076 | CD16: -0.097 | CE16: 0.0964 | CG16: 22.12.2014 | CH16: 0.604 | CI16: 0.596 | CJ16: 0.613 | CK16: 0.59 | CL16: 0.0168 | CM16: 0.7 | CO16: 30.12.2014 | CP16: 15.76 | CQ16: 15.76 | CR16: 15.81 | CS16: 15.46 | CT16: 0.0109 | CV16: 22.12.2014 | CW16: 13.12 | CX16: 13.25 | CY16: 13.25 | CZ16: 13.12 | DA16: -0.0289 | DB16: -2.64 | DD16: 19.12.2014 | DE16: -0.132 | DF16: -0.158 | DG16: -0.132 | DH16: -0.266 | DI16: -0.4634 | DK16: 19.12.2014 | DL16: 0.338 | DM16: 0.333 | DN16: 0.345 | DO16: 0.324 | DP16: 0.2381 | DQ16: 0.47 | DS16: 30.12.2014 | DT16: 2.22 | DU16: 2.257 | DV16: 2.285 | DW16: 2.213 | DX16: -0.0272 | DZ16: 30.12.2014 | EA16: 2.872 | EB16: 2.932 | EC16: 2.94 | ED16: 2.869 | EE16: -0.0251 | EF16: 0.65 | EH16: 23.12.2014 | EI16: 3.66 | EJ16: 3.66 | EK16: 3.665 | EL16: 3.65 | EM16: 0.0027 | EO16: 23.12.2014 | EP16: 3.73 | EQ16: 3.735 | ER16: 3.74 | ES16: 3.725 | ET16: 0.0013 | EU16: 0.07 | EW16: 18.12.2014 | EX16: -0.01 | EY16: 0.004 | EZ16: 0.006 | FA16: -0.013 | FB16: -4.3333 | FD16: 18.12.2014 | FE16: 0.352 | FF16: 0.369 | FG16: 0.372 | FH16: 0.349 | FI16: -0.0195 | FJ16: 0.36 | FL16: 25.12.2014 | FM16: 3.459 | FN16: 3.48 | FO16: 3.48 | FP16: 3.457 | FQ16: -0.0032 | FS16: 25.12.2014 | FT16: 3.633 | FU16: 3.68 | FV16: 3.68 | FW16: 3.629 | FX16: -0.0076 | FY16: 0.17 | GA16: 22.12.2014 | GB16: 7.48 | GC16: 7.48 | GD16: 7.48 | GE16: 7.48 | GF16: 0.0013 | GH16: 22.12.2014 | GI16: 7.845 | GJ16: 7.845 | GK16: 7.845 | GL16: 7.845 | GM16: 0.0013 | GN16: 0.36
A17: Yield Switzerland 2Y | C17: 26.12.2014 | D17: 0.743 | E17: 0.743 | F17: 0.751 | G17: 0.724 | H17: 0.005 | J17: 26.12.2014 | K17: 2.252 | L17: 2.255 | M17: 2.266 | N17: 2.236 | O17: -0.0014 | P17: 1.51 | R17: 19.12.2014 | S17: 1.012 | T17: 1.013 | U17: 1.024 | V17: 1.005 | W17: -0.0078 | Y17: 22.12.2014 | Z17: 1.795 | AA17: 1.813 | AB17: 1.827 | AC17: 1.793 | AD17: -0.0234 | AE17: =Z17-VLOOKUP(Y17, Диапазон_3, 2, 0) -> 0.774 | AG17: 22.12.2014 | AH17: 12.94 | AI17: 13.05 | AJ17: 13.07 | AK17: 12.94 | AL17: -0.0054 | AN17: 18.12.2014 | AO17: 12.625 | AP17: 12.58 | AQ17: 12.76 | AR17: 12.58 | AS17: -0.0167 | AT17: -0.32 | AV17: 26.12.2014 | AW17: 4.37 | AX17: 4.42 | AY17: 4.44 | AZ17: 4.39 | BA17: -0.018 | BC17: 26.12.2014 | BD17: 5.87 | BE17: 5.95 | BF17: 5.97 | BG17: 5.9 | BH17: -0.0151 | BI17: 1.5 | BK17: 24.12.2014 | BL17: 0.49 | BM17: 0.49 | BN17: 0.51 | BO17: 0.478 | BP17: 0.0294 | BR17: 24.12.2014 | BS17: 1.882 | BT17: 1.864 | BU17: 1.894 | BV17: 1.862 | BW17: 0.0184 | BX17: 1.39 | BZ17: 19.12.2014 | CA17: -0.083 | CB17: -0.083 | CC17: -0.071 | CD17: -0.088 | CE17: 0.0641 | CG17: 19.12.2014 | CH17: 0.594 | CI17: 0.614 | CJ17: 0.635 | CK17: 0.59 | CL17: -0.0326 | CM17: 0.68 | CO17: 29.12.2014 | CP17: 15.59 | CQ17: 15.75 | CR17: 16.07 | CS17: 15.43 | CT17: -0.0026 | CV17: 19.12.2014 | CW17: 13.51 | CX17: 13.51 | CY17: 13.78 | CZ17: 13.51 | DA17: 0 | DB17: -2.08 | DD17: 18.12.2014 | DE17: -0.246 | DF17: -0.155 | DG17: -0.053 | DH17: -0.246 | DI17: 4.5909 | DK17: 18.12.2014 | DL17: 0.273 | DM17: 0.265 | DN17: 0.273 | DO17: 0.235 | DP17: -0.0521 | DQ17: 0.52 | DS17: 29.12.2014 | DT17: 2.282 | DU17: 2.302 | DV17: 2.308 | DW17: 2.272 | DX17: -0.0039 | DZ17: 29.12.2014 | EA17: 2.946 | EB17: 2.966 | EC17: 2.969 | ED17: 2.931 | EE17: -0.003 | EF17: 0.66 | EH17: 22.12.2014 | EI17: 3.65 | EJ17: 3.7 | EK17: 3.7 | EL17: 3.65 | EM17: -0.0082 | EO17: 22.12.2014 | EP17: 3.725 | EQ17: 3.78 | ER17: 3.78 | ES17: 3.725 | ET17: -0.0119 | EU17: 0.08 | EW17: 17.12.2014 | EX17: 0.003 | EY17: 0.003 | EZ17: 0.008 | FA17: -0.002 | FB17: -0.4 | FD17: 17.12.2014 | FE17: 0.359 | FF17: 0.35 | FG17: 0.367 | FH17: 0.347 | FI17: -0.0083 | FJ17: 0.36 | FL17: 24.12.2014 | FM17: 3.47 | FN17: 3.494 | FO17: 3.515 | FP17: 3.466 | FQ17: -0.0083 | FS17: 24.12.2014 | FT17: 3.661 | FU17: 3.723 | FV17: 3.723 | FW17: 3.659 | FX17: -0.0161 | FY17: 0.19 | GA17: 19.12.2014 | GB17: 7.47 | GC17: 7.47 | GD17: 7.47 | GE17: 7.47 | GF17: 0.0034 | GH17: 19.12.2014 | GI17: 7.835 | GJ17: 7.835 | GK17: 7.835 | GL17: 7.835 | GM17: 0.0032 | GN17: 0.37
A18: Yield Switzerland 10Y | C18: 25.12.2014 | D18: 0.739 | E18: 0.747 | F18: 0.747 | G18: 0.739 | H18: -0.005 | J18: 25.12.2014 | K18: 2.255 | L18: 2.255 | M18: 2.257 | N18: 2.253 | O18: -0.0039 | P18: 1.52 | R18: 18.12.2014 | S18: 1.02 | T18: 1.001 | U18: 1.022 | V18: 0.925 | W18: 0.0149 | Y18: 20.12.2014 | Z18: 1.838 | AA18: 1.815 | AB18: 1.838 | AC18: 1.815 | AD18: 0.0143 | AE18: =Z18-VLOOKUP(Y18, Диапазон_3, 2, 0) ->  | AG18: 19.12.2014 | AH18: 13.01 | AI18: 13.08 | AJ18: 13.12 | AK18: 12.95 | AL18: -0.0054 | AN18: 17.12.2014 | AO18: 12.84 | AP18: 12.81 | AQ18: 12.86 | AR18: 12.71 | AS18: 0.0039 | AT18: -0.17 | AV18: 25.12.2014 | AW18: 4.45 | AX18: 4.43 | AY18: 4.45 | AZ18: 4.43 | BA18: 0.0137 | BC18: 25.12.2014 | BD18: 5.96 | BE18: 5.96 | BF18: 5.96 | BG18: 5.96 | BH18: 0.0068 | BI18: 1.51 | BK18: 23.12.2014 | BL18: 0.476 | BM18: 0.46 | BN18: 0.488 | BO18: 0.452 | BP18: -0.0021 | BR18: 23.12.2014 | BS18: 1.848 | BT18: 1.812 | BU18: 1.857 | BV18: 1.801 | BW18: 0.0104 | BX18: 1.37 | BZ18: 18.12.2014 | CA18: -0.078 | CB18: -0.077 | CC18: -0.065 | CD18: -0.09 | CE18: 0.3 | CG18: 18.12.2014 | CH18: 0.614 | CI18: 0.597 | CJ18: 0.633 | CK18: 0.57 | CL18: 0.0389 | CM18: 0.69 | CO18: 28.12.2014 | CP18: 15.63 | CQ18: 15.63 | CR18: 15.63 | CS18: 15.63 | CT18: 0 | CV18: 18.12.2014 | CW18: 13.51 | CX18: 13.51 | CY18: 13.65 | CZ18: 13.51 | DA18: 0.0007 | DB18: -2.12 | DD18: 17.12.2014 | DE18: -0.044 | DF18: -0.044 | DG18: -0.044 | DH18: -0.156 | DI18: -0.7124 | DK18: 17.12.2014 | DL18: 0.288 | DM18: 0.284 | DN18: 0.294 | DO18: 0.283 | DP18: 0.0511 | DQ18: 0.33 | DS18: 28.12.2014 | DT18: 2.291 | DU18: 2.292 | DV18: 2.308 | DW18: 2.28 | DX18: -0.0004 | DZ18: 28.12.2014 | EA18: 2.955 | EB18: 2.955 | EC18: 2.969 | ED18: 2.945 | EE18: 0 | EF18: 0.66 | EH18: 21.12.2014 | EI18: 3.68 | EJ18: 3.7 | EK18: 3.7 | EL18: 3.68 | EM18: -0.0054 | EO18: 21.12.2014 | EP18: 3.77 | EQ18: 3.78 | ER18: 3.78 | ES18: 3.77 | ET18: -0.0026 | EU18: 0.09 | EW18: 16.12.2014 | EX18: 0.005 | EY18: 0.009 | EZ18: 0.011 | FA18: 0.003 | FB18: -0.4444 | FD18: 16.12.2014 | FE18: 0.362 | FF18: 0.384 | FG18: 0.384 | FH18: 0.361 | FI18: -0.0524 | FJ18: 0.36 | FL18: 23.12.2014 | FM18: 3.499 | FN18: 3.528 | FO18: 3.528 | FP18: 3.483 | FQ18: -0.0065 | FS18: 23.12.2014 | FT18: 3.721 | FU18: 3.754 | FV18: 3.754 | FW18: 3.7 | FX18: -0.0072 | FY18: 0.22 | GA18: 18.12.2014 | GB18: 7.445 | GC18: 7.445 | GD18: 7.445 | GE18: 7.445 | GF18: -0.0172 | GH18: 18.12.2014 | GI18: 7.81 | GJ18: 7.81 | GK18: 7.81 | GL18: 7.81 | GM18: -0.0164 | GN18: 0.36
A19: Yield Australia 2Y | C19: 24.12.2014 | D19: 0.743 | E19: 0.739 | F19: 0.747 | G19: 0.724 | H19: 0 | J19: 24.12.2014 | K19: 2.264 | L19: 2.26 | M19: 2.301 | N19: 2.241 | O19: -0.0022 | P19: 1.52 | R19: 17.12.2014 | S19: 1.005 | T19: 0.953 | U19: 1.005 | V19: 0.953 | W19: 0.0535 | Y19: 19.12.2014 | Z19: 1.812 | AA19: 1.879 | AB19: 1.889 | AC19: 1.808 | AD19: -0.0305 | AE19: =Z19-VLOOKUP(Y19, Диапазон_3, 2, 0) -> 0.8 | AG19: 18.12.2014 | AH19: 13.08 | AI19: 13.09 | AJ19: 13.16 | AK19: 12.91 | AL19: -0.0008 | AN19: 16.12.2014 | AO19: 12.79 | AP19: 12.58 | AQ19: 12.79 | AR19: 12.58 | AS19: 0.0071 | AT19: -0.29 | AV19: 24.12.2014 | AW19: 4.39 | AX19: 4.43 | AY19: 4.45 | AZ19: 4.41 | BA19: 0 | BC19: 24.12.2014 | BD19: 5.92 | BE19: 5.96 | BF19: 6.01 | BG19: 5.92 | BH19: 0.0068 | BI19: 1.53 | BK19: 22.12.2014 | BL19: 0.477 | BM19: 0.461 | BN19: 0.507 | BO19: 0.46 | BP19: -0.0592 | BR19: 22.12.2014 | BS19: 1.829 | BT19: 1.844 | BU19: 1.858 | BV19: 1.815 | BW19: -0.0124 | BX19: 1.35 | BZ19: 17.12.2014 | CA19: -0.06 | CB19: -0.065 | CC19: -0.06 | CD19: -0.078 | CE19: -0.0164 | CG19: 17.12.2014 | CH19: 0.591 | CI19: 0.596 | CJ19: 0.605 | CK19: 0.566 | CL19: -0.0215 | CM19: 0.65 | CO19: 27.12.2014 | CP19: 15.63 | CQ19: 15.63 | CR19: 15.63 | CS19: 15.63 | CT19: 0 | CV19: 17.12.2014 | CW19: 13.5 | CX19: 16.29 | CY19: 16.29 | CZ19: 13.5 | DA19: -0.1687 | DB19: -2.13 | DD19: 16.12.2014 | DE19: -0.153 | DF19: -0.126 | DG19: -0.041 | DH19: -0.153 | DI19: 3.0263 | DK19: 16.12.2014 | DL19: 0.274 | DM19: 0.278 | DN19: 0.281 | DO19: 0.258 | DP19: -0.0318 | DQ19: 0.43 | DS19: 27.12.2014 | DT19: 2.292 | DU19: 2.28 | DV19: 2.292 | DW19: 2.28 | DX19: 0 | DZ19: 27.12.2014 | EA19: 2.955 | EB19: 2.961 | EC19: 2.961 | ED19: 2.945 | EE19: -0.002 | EF19: 0.66 | EH19: 19.12.2014 | EI19: 3.7 | EJ19: 3.65 | EK19: 3.7 | EL19: 3.645 | EM19: 0.0137 | EO19: 19.12.2014 | EP19: 3.78 | EQ19: 3.73 | ER19: 3.78 | ES19: 3.72 | ET19: 0.0134 | EU19: 0.08 | EW19: 15.12.2014 | EX19: 0.009 | EY19: 0.011 | EZ19: 0.011 | FA19: 0.008 | FB19: 0.2857 | FD19: 15.12.2014 | FE19: 0.382 | FF19: 0.381 | FG19: 0.392 | FH19: 0.381 | FI19: -0.0329 | FJ19: 0.37 | FL19: 22.12.2014 | FM19: 3.522 | FN19: 3.51 | FO19: 3.525 | FP19: 3.48 | FQ19: 0.0028 | FS19: 22.12.2014 | FT19: 3.748 | FU19: 3.7 | FV19: 3.768 | FW19: 3.7 | FX19: -0.0082 | FY19: 0.23 | GA19: 17.12.2014 | GB19: 7.575 | GC19: 7.575 | GD19: 7.575 | GE19: 7.575 | GF19: 0.0195 | GH19: 17.12.2014 | GI19: 7.94 | GJ19: 7.94 | GK19: 7.94 | GL19: 7.94 | GM19: 0.0199 | GN19: 0.37
A20: Yield Australia 10Y | C20: 23.12.2014 | D20: 0.743 | E20: 0.712 | F20: 0.747 | G20: 0.704 | H20: 0.1207 | J20: 23.12.2014 | K20: 2.269 | L20: 2.157 | M20: 2.271 | N20: 2.155 | O20: 0.0524 | P20: 1.53 | R20: 16.12.2014 | S20: 0.954 | T20: 0.973 | U20: 0.975 | V20: 0.937 | W20: -0.0225 | Y20: 18.12.2014 | Z20: 1.869 | AA20: 1.824 | AB20: 1.873 | AC20: 1.795 | AD20: 0.0315 | AE20: =Z20-VLOOKUP(Y20, Диапазон_3, 2, 0) -> 0.849 | AG20: 17.12.2014 | AH20: 13.09 | AI20: 13.09 | AJ20: 13.22 | AK20: 12.93 | AL20: 0 | AN20: 15.12.2014 | AO20: 12.7 | AP20: 12.58 | AQ20: 12.7 | AR20: 12.58 | AS20: 0.0051 | AT20: -0.39 | AV20: 23.12.2014 | AW20: 4.39 | AX20: 4.38 | AY20: 4.44 | AZ20: 4.36 | BA20: 0.0115 | BC20: 23.12.2014 | BD20: 5.88 | BE20: 5.86 | BF20: 5.97 | BG20: 5.85 | BH20: 0.0068 | BI20: 1.49 | BK20: 21.12.2014 | BL20: 0.507 | BM20: 0.511 | BN20: 0.511 | BO20: 0.506 | BP20: 0.0833 | BR20: 20.12.2014 | BS20: 1.852 | BT20: 1.852 | BU20: 1.852 | BV20: 1.851 | BW20: 0.0005 | BX20: 1.35 | BZ20: 16.12.2014 | CA20: -0.061 | CB20: -0.056 | CC20: -0.05 | CD20: -0.079 | CE20: 0.1296 | CG20: 16.12.2014 | CH20: 0.604 | CI20: 0.628 | CJ20: 0.637 | CK20: 0.566 | CL20: -0.0397 | CM20: 0.67 | CO20: 26.12.2014 | CP20: 15.63 | CQ20: 15.47 | CR20: 15.63 | CS20: 15.42 | CT20: 0.0006 | CV20: 16.12.2014 | CW20: 16.24 | CX20: 15.67 | CY20: 16.54 | CZ20: 15.54 | DA20: 0.2303 | DB20: 0.61 | DD20: 15.12.2014 | DE20: -0.038 | DF20: -0.118 | DG20: -0.038 | DH20: -0.129 | DI20: 0.0857 | DK20: 15.12.2014 | DL20: 0.283 | DM20: 0.296 | DN20: 0.299 | DO20: 0.272 | DP20: 0.0481 | DQ20: 0.32 | DS20: 26.12.2014 | DT20: 2.292 | DU20: 2.295 | DV20: 2.295 | DW20: 2.28 | DX20: -0.0013 | DZ20: 26.12.2014 | EA20: 2.961 | EB20: 2.955 | EC20: 2.978 | ED20: 2.945 | EE20: 0.002 | EF20: 0.67 | EH20: 18.12.2014 | EI20: 3.65 | EJ20: 3.62 | EK20: 3.675 | EL20: 3.62 | EM20: 0.0083 | EO20: 18.12.2014 | EP20: 3.73 | EQ20: 3.7 | ER20: 3.755 | ES20: 3.7 | ET20: 0.0081 | EU20: 0.08 | EW20: 14.12.2014 | EX20: 0.007 | EY20: 0.007 | EZ20: 0.007 | FA20: 0.007 | FB20: -0.3636 | FD20: 14.12.2014 | FE20: 0.395 | FF20: 0.395 | FG20: 0.395 | FH20: 0.395 | FI20: -0.015 | FJ20: 0.39 | FL20: 19.12.2014 | FM20: 3.512 | FN20: 3.49 | FO20: 3.512 | FP20: 3.49 | FQ20: 0.0165 | FS20: 19.12.2014 | FT20: 3.779 | FU20: 3.79 | FV20: 3.79 | FW20: 3.775 | FX20: 0.0024 | FY20: 0.27 | GA20: 15.12.2014 | GB20: 7.43 | GC20: 7.43 | GD20: 7.43 | GE20: 7.43 | GF20: 0.002 | GH20: 15.12.2014 | GI20: 7.785 | GJ20: 7.785 | GK20: 7.785 | GL20: 7.785 | GM20: 0.0019 | GN20: 0.36
A21: Yield New Zealand 5Y | C21: 22.12.2014 | D21: 0.663 | E21: 0.646 | F21: 0.663 | G21: 0.634 | H21: 0.0262 | J21: 22.12.2014 | K21: 2.156 | L21: 2.165 | M21: 2.19 | N21: 2.149 | O21: -0.0051 | P21: 1.49 | R21: 15.12.2014 | S21: 0.976 | T21: 0.969 | U21: 0.985 | V21: 0.964 | W21: 0.0124 | Y21: 17.12.2014 | Z21: 1.812 | AA21: 1.76 | AB21: 1.815 | AC21: 1.747 | AD21: 0.0366 | AE21: =Z21-VLOOKUP(Y21, Диапазон_3, 2, 0) -> 0.807 | AG21: 16.12.2014 | AH21: 13.09 | AI21: 12.8 | AJ21: 13.56 | AK21: 12.76 | AL21: 0.0227 | AN21: 14.12.2014 | AO21: 12.635 | AP21: 12.635 | AQ21: 12.635 | AR21: 12.635 | AS21: 0 | AT21: -0.46 | AV21: 22.12.2014 | AW21: 4.34 | AX21: 4.38 | AY21: 4.46 | AZ21: 4.35 | BA21: -0.0069 | BC21: 22.12.2014 | BD21: 5.84 | BE21: 5.87 | BF21: 5.97 | BG21: 5.85 | BH21: -0.0051 | BI21: 1.5 | BK21: 19.12.2014 | BL21: 0.468 | BM21: 0.518 | BN21: 0.548 | BO21: 0.468 | BP21: -0.0841 | BR21: 19.12.2014 | BS21: 1.851 | BT21: 1.878 | BU21: 1.925 | BV21: 1.85 | BW21: -0.0102 | BX21: 1.38 | BZ21: 15.12.2014 | CA21: -0.054 | CB21: -0.035 | CC21: -0.03 | CD21: -0.054 | CE21: 0.3171 | CG21: 15.12.2014 | CH21: 0.629 | CI21: 0.632 | CJ21: 0.65 | CK21: 0.622 | CL21: 0.0064 | CM21: 0.68 | CO21: 25.12.2014 | CP21: 15.62 | CQ21: 15.62 | CR21: 15.62 | CS21: 15.31 | CT21: 0.0013 | CV21: 15.12.2014 | CW21: 13.2 | CX21: 13.01 | CY21: 13.2 | CZ21: 13.01 | DA21: 0.0162 | DB21: -2.42 | DD21: 14.12.2014 | DE21: -0.035 | DF21: -0.035 | DG21: -0.035 | DH21: -0.035 | DI21: -0.6957 | DK21: 14.12.2014 | DL21: 0.27 | DM21: 0.27 | DN21: 0.27 | DO21: 0.27 | DP21: 0 | DQ21: 0.31 | DS21: 25.12.2014 | DT21: 2.295 | DU21: 2.295 | DV21: 2.305 | DW21: 2.28 | DX21: 0.0013 | DZ21: 25.12.2014 | EA21: 2.955 | EB21: 2.955 | EC21: 2.967 | ED21: 2.945 | EE21: -0.0014 | EF21: 0.66 | EH21: 17.12.2014 | EI21: 3.62 | EJ21: 3.655 | EK21: 3.655 | EL21: 3.615 | EM21: -0.0069 | EO21: 17.12.2014 | EP21: 3.7 | EQ21: 3.745 | ER21: 3.745 | ES21: 3.695 | ET21: -0.0094 | EU21: 0.08 | EW21: 12.12.2014 | EX21: 0.011 | EY21: -0.002 | EZ21: 0.011 | FA21: -0.004 | FB21: 0.2222 | FD21: 12.12.2014 | FE21: 0.401 | FF21: 0.405 | FG21: 0.407 | FH21: 0.395 | FI21: -0.0243 | FJ21: 0.39 | FL21: 18.12.2014 | FM21: 3.455 | FN21: 3.39 | FO21: 3.47 | FP21: 3.39 | FQ21: 0.0189 | FS21: 18.12.2014 | FT21: 3.77 | FU21: 3.797 | FV21: 3.797 | FW21: 3.764 | FX21: -0.0024 | FY21: 0.32 | GA21: 14.12.2014 | GB21: 7.415 | GC21: 7.415 | GD21: 7.415 | GE21: 7.415 | GF21: 0 | GH21: 14.12.2014 | GI21: 7.77 | GJ21: 7.77 | GK21: 7.77 | GL21: 7.77 | GM21: 0 | GN21: 0.36
A22: Yield New Zealand 10Y | C22: 21.12.2014 | D22: 0.646 | E22: 0.646 | F22: 0.646 | G22: 0.646 | H22: 0.0064 | J22: 21.12.2014 | K22: 2.167 | L22: 2.169 | M22: 2.169 | N22: 2.165 | O22: 0.0032 | P22: 1.52 | R22: 14.12.2014 | S22: 0.964 | T22: 0.964 | U22: 0.964 | V22: 0.964 | W22: -0.0493 | Y22: 16.12.2014 | Z22: 1.748 | AA22: 1.78 | AB22: 1.783 | AC22: 1.712 | AD22: -0.0207 | AE22: =Z22-VLOOKUP(Y22, Диапазон_3, 2, 0) -> 0.794 | AG22: 15.12.2014 | AH22: 12.8 | AI22: 12.6 | AJ22: 12.84 | AK22: 12.56 | AL22: 0.0143 | AN22: 12.12.2014 | AO22: 12.635 | AP22: 12.69 | AQ22: 12.71 | AR22: 12.51 | AS22: 0.0036 | AT22: -0.17 | AV22: 20.12.2014 | AW22: 4.37 | AX22: 4.37 | AY22: 4.37 | AZ22: 4.37 | BA22: 0.0046 | BC22: 20.12.2014 | BD22: 5.87 | BE22: 5.87 | BF22: 5.87 | BG22: 5.87 | BH22: 0.0034 | BI22: 1.5 | BK22: 18.12.2014 | BL22: 0.511 | BM22: 0.473 | BN22: 0.521 | BO22: 0.455 | BP22: 0.0896 | BR22: 18.12.2014 | BS22: 1.87 | BT22: 1.77 | BU22: 1.881 | BV22: 1.765 | BW22: 0.0607 | BX22: 1.36 | BZ22: 14.12.2014 | CA22: -0.041 | CB22: -0.041 | CC22: -0.041 | CD22: -0.041 | CE22: -0.0465 | CG22: 14.12.2014 | CH22: 0.625 | CI22: 0.625 | CJ22: 0.625 | CK22: 0.625 | CL22: -0.0016 | CM22: 0.67 | CO22: 24.12.2014 | CP22: 15.6 | CQ22: 15.6 | CR22: 15.7 | CS22: 15.41 | CT22: 0.0045 | CV22: 14.12.2014 | CW22: 12.99 | CX22: 12.99 | CY22: 12.99 | CZ22: 12.99 | DA22: 0 | DB22: -2.61 | DD22: 12.12.2014 | DE22: -0.115 | DF22: -0.083 | DG22: -0.035 | DH22: -0.115 | DI22: 2.5938 | DK22: 12.12.2014 | DL22: 0.27 | DM22: 0.277 | DN22: 0.277 | DO22: 0.256 | DP22: 0.0075 | DQ22: 0.39 | DS22: 24.12.2014 | DT22: 2.292 | DU22: 2.304 | DV22: 2.32 | DW22: 2.292 | DX22: 0.0088 | DZ22: 24.12.2014 | EA22: 2.959 | EB22: 2.956 | EC22: 2.983 | ED22: 2.956 | EE22: 0.0168 | EF22: 0.67 | EH22: 16.12.2014 | EI22: 3.645 | EJ22: 3.635 | EK22: 3.67 | EL22: 3.625 | EM22: 0.0055 | EO22: 16.12.2014 | EP22: 3.735 | EQ22: 3.73 | ER22: 3.765 | ES22: 3.72 | ET22: 0.0013 | EU22: 0.09 | EW22: 11.12.2014 | EX22: 0.009 | EY22: -0.002 | EZ22: 0.013 | FA22: -0.002 | FB22: 8 | FD22: 11.12.2014 | FE22: 0.411 | FF22: 0.404 | FG22: 0.414 | FH22: 0.394 | FI22: 0 | FJ22: 0.4 | FL22: 17.12.2014 | FM22: 3.391 | FN22: 3.395 | FO22: 3.42 | FP22: 3.39 | FQ22: -0.0047 | FS22: 17.12.2014 | FT22: 3.779 | FU22: 3.81 | FV22: 3.82 | FW22: 3.778 | FX22: -0.0034 | FY22: 0.39 | GA22: 12.12.2014 | GB22: 7.415 | GC22: 7.415 | GD22: 7.415 | GE22: 7.415 | GF22: 0.0075 | GH22: 12.12.2014 | GI22: 7.77 | GJ22: 7.77 | GK22: 7.77 | GL22: 7.77 | GM22: 0.0019 | GN22: 0.36
A23: Yield Japan 2Y | C23: 19.12.2014 | D23: 0.642 | E23: 0.637 | F23: 0.654 | G23: 0.618 | H23: 0.0142 | J23: 19.12.2014 | K23: 2.16 | L23: 2.213 | M23: 2.234 | N23: 2.157 | O23: -0.0217 | P23: 1.52 | R23: 12.12.2014 | S23: 1.014 | T23: 1.014 | U23: 1.014 | V23: 0.964 | W23: -0.0029 | Y23: 15.12.2014 | Z23: 1.785 | AA23: 1.768 | AB23: 1.807 | AC23: 1.751 | AD23: 0.0034 | AE23: =Z23-VLOOKUP(Y23, Диапазон_3, 2, 0) -> 0.809 | AG23: 14.12.2014 | AH23: 12.62 | AI23: 12.62 | AJ23: 12.62 | AK23: 12.62 | AL23: 0 | AN23: 11.12.2014 | AO23: 12.59 | AP23: 12.54 | AQ23: 12.77 | AR23: 12.54 | AS23: 0.0064 | AT23: -0.03 | AV23: 19.12.2014 | AW23: 4.35 | AX23: 4.45 | AY23: 4.45 | AZ23: 4.33 | BA23: -0.0136 | BC23: 19.12.2014 | BD23: 5.85 | BE23: 5.97 | BF23: 6.04 | BG23: 5.85 | BH23: -0.0135 | BI23: 1.5 | BK23: 17.12.2014 | BL23: 0.469 | BM23: 0.462 | BN23: 0.481 | BO23: 0.428 | BP23: -0.0085 | BR23: 17.12.2014 | BS23: 1.763 | BT23: 1.779 | BU23: 1.806 | BV23: 1.744 | BW23: -0.0151 | BX23: 1.29 | BZ23: 12.12.2014 | CA23: -0.043 | CB23: -0.032 | CC23: -0.03 | CD23: -0.048 | CE23: 0.2647 | CG23: 12.12.2014 | CH23: 0.626 | CI23: 0.663 | CJ23: 0.664 | CK23: 0.618 | CL23: -0.0808 | CM23: 0.67 | CO23: 23.12.2014 | CP23: 15.53 | CQ23: 15.66 | CR23: 15.68 | CS23: 15.4 | CT23: -0.0032 | CV23: 12.12.2014 | CW23: 12.99 | CX23: 12.4 | CY23: 12.99 | CZ23: 12.4 | DA23: 0.0476 | DB23: -2.54 | DD23: 11.12.2014 | DE23: -0.032 | DF23: -0.021 | DG23: -0.021 | DH23: -0.117 | DI23: 0.7778 | DK23: 11.12.2014 | DL23: 0.268 | DM23: 0.295 | DN23: 0.295 | DO23: 0.266 | DP23: -0.0183 | DQ23: 0.3 | DS23: 23.12.2014 | DT23: 2.272 | DU23: 2.288 | DV23: 2.292 | DW23: 2.272 | DX23: -0.0053 | DZ23: 23.12.2014 | EA23: 2.91 | EB23: 2.928 | EC23: 2.93 | ED23: 2.909 | EE23: -0.0082 | EF23: 0.64 | EH23: 15.12.2014 | EI23: 3.625 | EJ23: 3.66 | EK23: 3.66 | EL23: 3.62 | EM23: -0.0014 | EO23: 15.12.2014 | EP23: 3.73 | EQ23: 3.765 | ER23: 3.765 | ES23: 3.725 | ET23: 0.0013 | EU23: 0.11 | EW23: 10.12.2014 | EX23: 0.001 | EY23: -0.001 | EZ23: 0.006 | FA23: -0.008 | FB23: -1.1667 | FD23: 10.12.2014 | FE23: 0.411 | FF23: 0.413 | FG23: 0.422 | FH23: 0.397 | FI23: -0.0261 | FJ23: 0.41 | FL23: 16.12.2014 | FM23: 3.407 | FN23: 3.393 | FO23: 3.425 | FP23: 3.393 | FQ23: -0.0018 | FS23: 16.12.2014 | FT23: 3.792 | FU23: 3.797 | FV23: 3.806 | FW23: 3.787 | FX23: 0.005 | FY23: 0.39 | GA23: 11.12.2014 | GB23: 7.36 | GC23: 7.36 | GD23: 7.36 | GE23: 7.36 | GF23: -0.0047 | GH23: 11.12.2014 | GI23: 7.755 | GJ23: 7.755 | GK23: 7.755 | GL23: 7.755 | GM23: 0.0032 | GN23: 0.4
A24: Yield Japan 10Y | C24: 18.12.2014 | D24: 0.633 | E24: 0.629 | F24: 0.646 | G24: 0.593 | H24: 0.0259 | J24: 18.12.2014 | K24: 2.208 | L24: 2.148 | M24: 2.225 | N24: 2.111 | O24: 0.0337 | P24: 1.58 | R24: 11.12.2014 | S24: 1.017 | T24: 0.996 | U24: 1.022 | V24: 0.986 | W24: 0.017 | Y24: 14.12.2014 | Z24: 1.779 | AA24: 1.779 | AB24: 1.779 | AC24: 1.779 | AD24: 0 | AE24: =Z24-VLOOKUP(Y24, Диапазон_3, 2, 0) -> 0.815 | AG24: 12.12.2014 | AH24: 12.62 | AI24: 12.6 | AJ24: 12.76 | AK24: 12.59 | AL24: 0.0016 | AN24: 10.12.2014 | AO24: 12.51 | AP24: 12.3 | AQ24: 12.51 | AR24: 12.25 | AS24: 0.0187 | AT24: -0.11 | AV24: 18.12.2014 | AW24: 4.41 | AX24: 4.46 | AY24: 4.48 | AZ24: 4.41 | BA24: -0.0045 | BC24: 18.12.2014 | BD24: 5.93 | BE24: 6.06 | BF24: 6.09 | BG24: 5.96 | BH24: -0.0182 | BI24: 1.52 | BK24: 16.12.2014 | BL24: 0.473 | BM24: 0.454 | BN24: 0.481 | BO24: 0.405 | BP24: 0.0488 | BR24: 16.12.2014 | BS24: 1.79 | BT24: 1.819 | BU24: 1.82 | BV24: 1.694 | BW24: -0.0143 | BX24: 1.32 | BZ24: 11.12.2014 | CA24: -0.034 | CB24: -0.029 | CC24: -0.015 | CD24: -0.034 | CE24: 0.2593 | CG24: 11.12.2014 | CH24: 0.681 | CI24: 0.674 | CJ24: 0.685 | CK24: 0.657 | CL24: -0.0029 | CM24: 0.72 | CO24: 22.12.2014 | CP24: 15.58 | CQ24: 15.83 | CR24: 15.97 | CS24: 15.41 | CT24: -0.0293 | CV24: 11.12.2014 | CW24: 12.4 | CX24: 12.85 | CY24: 12.95 | CZ24: 12.21 | DA24: -0.0159 | DB24: -3.18 | DD24: 10.12.2014 | DE24: -0.018 | DF24: -0.129 | DG24: -0.018 | DH24: -0.129 | DI24: -0.4194 | DK24: 10.12.2014 | DL24: 0.273 | DM24: 0.309 | DN24: 0.309 | DO24: 0.272 | DP24: -0.0285 | DQ24: 0.29 | DS24: 22.12.2014 | DT24: 2.284 | DU24: 2.308 | DV24: 2.325 | DW24: 2.272 | DX24: -0.0074 | DZ24: 22.12.2014 | EA24: 2.934 | EB24: 2.964 | EC24: 2.973 | ED24: 2.922 | EE24: -0.0058 | EF24: 0.65 | EH24: 14.12.2014 | EI24: 3.63 | EJ24: 3.65 | EK24: 3.66 | EL24: 3.62 | EM24: -0.0055 | EO24: 14.12.2014 | EP24: 3.725 | EQ24: 3.755 | ER24: 3.765 | ES24: 3.725 | ET24: -0.008 | EU24: 0.1 | EW24: 09.12.2014 | EX24: -0.006 | EY24: -0.001 | EZ24: 0.001 | FA24: -0.008 | FB24: -3 | FD24: 09.12.2014 | FE24: 0.422 | FF24: 0.431 | FG24: 0.437 | FH24: 0.421 | FI24: -0.0452 | FJ24: 0.43 | FL24: 15.12.2014 | FM24: 3.413 | FN24: 3.42 | FO24: 3.443 | FP24: 3.41 | FQ24: 0.0023 | FS24: 15.12.2014 | FT24: 3.773 | FU24: 3.8 | FV24: 3.85 | FW24: 3.773 | FX24: 0.0016 | FY24: 0.36 | GA24: 10.12.2014 | GB24: 7.395 | GC24: 7.395 | GD24: 7.395 | GE24: 7.395 | GF24: 0.0186 | GH24: 10.12.2014 | GI24: 7.73 | GJ24: 7.73 | GK24: 7.73 | GL24: 7.73 | GM24: 0.0184 | GN24: 0.34
A25: Yield China 2Y | C25: 17.12.2014 | D25: 0.617 | E25: 0.548 | F25: 0.629 | G25: 0.516 | H25: 0.1097 | J25: 17.12.2014 | K25: 2.136 | L25: 2.061 | M25: 2.15 | N25: 2.047 | O25: 0.0364 | P25: 1.52 | R25: 10.12.2014 | S25: 1 | T25: 1.019 | U25: 1.024 | V25: 0.995 | W25: -0.0215 | Y25: 13.12.2014 | Z25: 1.779 | AA25: 1.757 | AB25: 1.779 | AC25: 1.757 | AD25: 0.0125 | AE25: =Z25-VLOOKUP(Y25, Диапазон_3, 2, 0) ->  | AG25: 11.12.2014 | AH25: 12.6 | AI25: 12.49 | AJ25: 12.68 | AK25: 12.46 | AL25: 0.0088 | AN25: 09.12.2014 | AO25: 12.28 | AP25: 12.19 | AQ25: 12.29 | AR25: 12.13 | AS25: 0.0057 | AT25: -0.32 | AV25: 17.12.2014 | AW25: 4.43 | AX25: 4.62 | AY25: 4.63 | AZ25: 4.41 | BA25: -0.0306 | BC25: 17.12.2014 | BD25: 6.04 | BE25: 6.2 | BF25: 6.22 | BG25: 6.04 | BH25: -0.0179 | BI25: 1.61 | BK25: 15.12.2014 | BL25: 0.451 | BM25: 0.472 | BN25: 0.509 | BO25: 0.446 | BP25: -0.0363 | BR25: 15.12.2014 | BS25: 1.816 | BT25: 1.815 | BU25: 1.864 | BV25: 1.81 | BW25: 0.0067 | BX25: 1.37 | BZ25: 10.12.2014 | CA25: -0.027 | CB25: -0.037 | CC25: -0.02 | CD25: -0.037 | CE25: -0.1563 | CG25: 10.12.2014 | CH25: 0.683 | CI25: 0.695 | CJ25: 0.697 | CK25: 0.672 | CL25: -0.013 | CM25: 0.71 | CO25: 21.12.2014 | CP25: 16.05 | CQ25: 16.05 | CR25: 16.05 | CS25: 16.05 | CT25: 0.0107 | CV25: 10.12.2014 | CW25: 12.6 | CX25: 12.95 | CY25: 12.95 | CZ25: 12.6 | DA25: -0.0248 | DB25: -3.45 | DD25: 09.12.2014 | DE25: -0.031 | DF25: -0.11 | DG25: -0.025 | DH25: -0.11 | DI25: 0.1071 | DK25: 09.12.2014 | DL25: 0.281 | DM25: 0.305 | DN25: 0.305 | DO25: 0.277 | DP25: -0.0757 | DQ25: 0.31 | DS25: 21.12.2014 | DT25: 2.301 | DU25: 2.32 | DV25: 2.325 | DW25: 2.301 | DX25: -0.0056 | DZ25: 21.12.2014 | EA25: 2.951 | EB25: 2.965 | EC25: 2.973 | ED25: 2.95 | EE25: -0.0047 | EF25: 0.65 | EH25: 12.12.2014 | EI25: 3.65 | EJ25: 3.695 | EK25: 3.725 | EL25: 3.65 | EM25: -0.0095 | EO25: 12.12.2014 | EP25: 3.755 | EQ25: 3.815 | ER25: 3.845 | ES25: 3.755 | ET25: -0.0131 | EU25: 0.11 | EW25: 08.12.2014 | EX25: 0.003 | EY25: 0.004 | EZ25: 0.012 | FA25: -0.004 | FB25: 0 | FD25: 08.12.2014 | FE25: 0.442 | FF25: 0.429 | FG25: 0.443 | FH25: 0.424 | FI25: 0.0351 | FJ25: 0.44 | FL25: 14.12.2014 | FM25: 3.405 | FN25: 3.405 | FO25: 3.405 | FP25: 3.405 | FQ25: 0 | FS25: 14.12.2014 | FT25: 3.767 | FU25: 3.767 | FV25: 3.767 | FW25: 3.767 | FX25: 0 | FY25: 0.36 | GA25: 09.12.2014 | GB25: 7.26 | GC25: 7.26 | GD25: 7.26 | GE25: 7.26 | GF25: 0.0083 | GH25: 09.12.2014 | GI25: 7.59 | GJ25: 7.59 | GK25: 7.59 | GL25: 7.59 | GM25: 0.002 | GN25: 0.33
A26: Yield China 10Y | C26: 16.12.2014 | D26: 0.556 | E26: 0.58 | F26: 0.585 | G26: 0.48 | H26: -0.0414 | J26: 16.12.2014 | K26: 2.061 | L26: 2.116 | M26: 2.118 | N26: 2.009 | O26: -0.0255 | P26: 1.51 | R26: 09.12.2014 | S26: 1.022 | T26: 1.022 | U26: 1.026 | V26: 1.003 | W26: -0.0029 | Y26: 12.12.2014 | Z26: 1.757 | AA26: 1.836 | AB26: 1.84 | AC26: 1.756 | AD26: -0.0373 | AE26: =Z26-VLOOKUP(Y26, Диапазон_3, 2, 0) -> 0.743 | AG26: 10.12.2014 | AH26: 12.49 | AI26: 12.47 | AJ26: 12.56 | AK26: 12.38 | AL26: 0.0016 | AN26: 08.12.2014 | AO26: 12.21 | AP26: 12.067 | AQ26: 12.22 | AR26: 12.04 | AS26: 0.0083 | AT26: -0.28 | AV26: 16.12.2014 | AW26: 4.57 | AX26: 4.59 | AY26: 4.71 | AZ26: 4.55 | BA26: 0.0088 | BC26: 16.12.2014 | BD26: 6.15 | BE26: 6.19 | BF26: 6.29 | BG26: 6.15 | BH26: 0.0033 | BI26: 1.58 | BK26: 14.12.2014 | BL26: 0.468 | BM26: 0.468 | BN26: 0.468 | BO26: 0.468 | BP26: 0 | BR26: 14.12.2014 | BS26: 1.804 | BT26: 1.804 | BU26: 1.804 | BV26: 1.804 | BW26: 0 | BX26: 1.34 | BZ26: 09.12.2014 | CA26: -0.032 | CB26: -0.035 | CC26: -0.02 | CD26: -0.037 | CE26: 0.6 | CG26: 09.12.2014 | CH26: 0.692 | CI26: 0.714 | CJ26: 0.726 | CK26: 0.688 | CL26: -0.0349 | CM26: 0.72 | CO26: 20.12.2014 | CP26: 15.88 | CQ26: 15.88 | CR26: 16.05 | CS26: 15.88 | CT26: 0 | CV26: 09.12.2014 | CW26: 12.92 | CX26: 12.97 | CY26: 12.97 | CZ26: 12.92 | DA26: 0.0062 | DB26: -2.96 | DD26: 08.12.2014 | DE26: -0.028 | DF26: -0.107 | DG26: -0.028 | DH26: -0.112 | DI26: -0.7308 | DK26: 08.12.2014 | DL26: 0.304 | DM26: 0.311 | DN26: 0.311 | DO26: 0.304 | DP26: 0 | DQ26: 0.33 | DS26: 20.12.2014 | DT26: 2.314 | DU26: 2.31 | DV26: 2.32 | DW26: 2.31 | DX26: -0.0047 | DZ26: 20.12.2014 | EA26: 2.965 | EB26: 2.961 | EC26: 2.965 | ED26: 2.961 | EE26: -0.0094 | EF26: 0.65 | EH26: 11.12.2014 | EI26: 3.685 | EJ26: 3.73 | EK26: 3.73 | EL26: 3.68 | EM26: -0.0094 | EO26: 11.12.2014 | EP26: 3.805 | EQ26: 3.855 | ER26: 3.855 | ES26: 3.8 | ET26: -0.0104 | EU26: 0.12 | EW26: 05.12.2014 | EX26: 0 | EY26: -0.002 | EZ26: 0.005 | FA26: -0.008 | FB26: -1 | FD26: 05.12.2014 | FE26: 0.427 | FF26: 0.428 | FG26: 0.439 | FH26: 0.42 | FI26: -0.0229 | FJ26: 0.43 | FL26: 12.12.2014 | FM26: 3.405 | FN26: 3.38 | FO26: 3.41 | FP26: 3.373 | FQ26: -0.0003 | FS26: 12.12.2014 | FT26: 3.767 | FU26: 3.783 | FV26: 3.8 | FW26: 3.764 | FX26: 0.0016 | FY26: 0.36 | GA26: 08.12.2014 | GB26: 7.2 | GC26: 7.2 | GD26: 7.2 | GE26: 7.2 | GF26: 0.0056 | GH26: 08.12.2014 | GI26: 7.575 | GJ26: 7.575 | GK26: 7.575 | GL26: 7.575 | GM26: 0.006 | GN26: 0.38
A27: Yield South Africa 5Y | C27: 15.12.2014 | D27: 0.58 | E27: 0.544 | F27: 0.592 | G27: 0.544 | H27: 0.0739 | J27: 15.12.2014 | K27: 2.115 | L27: 2.078 | M27: 2.136 | N27: 2.071 | O27: 0.0168 | P27: 1.54 | R27: 08.12.2014 | S27: 1.025 | T27: 1.046 | U27: 1.055 | V27: 1.02 | W27: -0.0201 | Y27: 11.12.2014 | Z27: 1.825 | AA27: 1.843 | AB27: 1.871 | AC27: 1.807 | AD27: -0.0033 | AE27: =Z27-VLOOKUP(Y27, Диапазон_3, 2, 0) -> 0.808 | AG27: 09.12.2014 | AH27: 12.47 | AI27: 12.54 | AJ27: 12.63 | AK27: 12.39 | AL27: -0.0016 | AN27: 05.12.2014 | AO27: 12.11 | AP27: 12 | AQ27: 12.25 | AR27: 12 | AS27: 0.0058 | AT27: -0.36 | AV27: 15.12.2014 | AW27: 4.53 | AX27: 4.54 | AY27: 4.59 | AZ27: 4.5 | BA27: 0 | BC27: 15.12.2014 | BD27: 6.13 | BE27: 6.08 | BF27: 6.16 | BG27: 6.07 | BH27: 0.0049 | BI27: 1.6 | BK27: 13.12.2014 | BL27: 0.468 | BM27: 0.468 | BN27: 0.468 | BO27: 0.468 | BP27: -0.0106 | BR27: 13.12.2014 | BS27: 1.804 | BT27: 1.804 | BU27: 1.808 | BV27: 1.804 | BW27: -0.0028 | BX27: 1.34 | BZ27: 08.12.2014 | CA27: -0.02 | CB27: -0.01 | CC27: -0.005 | CD27: -0.035 | CE27: 0.8182 | CG27: 08.12.2014 | CH27: 0.717 | CI27: 0.777 | CJ27: 0.789 | CK27: 0.714 | CL27: -0.0843 | CM27: 0.74 | CO27: 19.12.2014 | CP27: 15.88 | CQ27: 15.88 | CR27: 15.99 | CS27: 15.74 | CT27: 0.0006 | CV27: 08.12.2014 | CW27: 12.84 | CX27: 12.06 | CY27: 12.84 | CZ27: 11.99 | DA27: 0.0673 | DB27: -3.04 | DD27: 05.12.2014 | DE27: -0.104 | DF27: -0.13 | DG27: -0.104 | DH27: -0.13 | DI27: -0.2973 | DK27: 05.12.2014 | DL27: 0.304 | DM27: 0.306 | DN27: 0.312 | DO27: 0.288 | DP27: 0.01 | DQ27: 0.41 | DS27: 19.12.2014 | DT27: 2.325 | DU27: 2.306 | DV27: 2.332 | DW27: 2.3 | DX27: 0.0122 | DZ27: 19.12.2014 | EA27: 2.993 | EB27: 2.981 | EC27: 2.993 | ED27: 2.967 | EE27: 0.0201 | EF27: 0.67 | EH27: 10.12.2014 | EI27: 3.72 | EJ27: 3.765 | EK27: 3.765 | EL27: 3.715 | EM27: -0.0093 | EO27: 10.12.2014 | EP27: 3.845 | EQ27: 3.89 | ER27: 3.89 | ES27: 3.84 | ET27: -0.009 | EU27: 0.13 | EW27: 04.12.2014 | EX27: -0.007 | EY27: 0.018 | EZ27: 0.018 | FA27: -0.013 | FB27: 0.1667 | FD27: 04.12.2014 | FE27: 0.437 | FF27: 0.432 | FG27: 0.447 | FH27: 0.431 | FI27: 0 | FJ27: 0.44 | FL27: 11.12.2014 | FM27: 3.406 | FN27: 3.47 | FO27: 3.47 | FP27: 3.401 | FQ27: -0.0021 | FS27: 11.12.2014 | FT27: 3.761 | FU27: 3.787 | FV27: 3.787 | FW27: 3.735 | FX27: -0.005 | FY27: 0.36 | GA27: 05.12.2014 | GB27: 7.16 | GC27: 7.16 | GD27: 7.16 | GE27: 7.16 | GF27: 0.007 | GH27: 05.12.2014 | GI27: 7.53 | GJ27: 7.53 | GK27: 7.53 | GL27: 7.53 | GM27: 0.0128 | GN27: 0.37
A28: Yield South Africa 10Y | C28: 14.12.2014 | D28: 0.54 | E28: 0.544 | F28: 0.544 | G28: 0.536 | H28: -0.0072 | J28: 14.12.2014 | K28: 2.08 | L28: 2.083 | M28: 2.085 | N28: 2.08 | O28: -0.0014 | P28: 1.54 | R28: 05.12.2014 | S28: 1.046 | T28: 1.021 | U28: 1.056 | V28: 1.018 | W28: 0.0285 | Y28: 10.12.2014 | Z28: 1.831 | AA28: 1.892 | AB28: 1.894 | AC28: 1.821 | AD28: -0.0266 | AE28: =Z28-VLOOKUP(Y28, Диапазон_3, 2, 0) -> 0.831 | AG28: 08.12.2014 | AH28: 12.49 | AI28: 12.54 | AJ28: 12.56 | AK28: 12.34 | AL28: 0.0064 | AN28: 04.12.2014 | AO28: 12.04 | AP28: 12.12 | AQ28: 12.224 | AR28: 12.04 | AS28: 0.0025 | AT28: -0.45 | AV28: 14.12.2014 | AW28: 4.53 | AX28: 4.53 | AY28: 4.53 | AZ28: 4.53 | BA28: 0 | BC28: 14.12.2014 | BD28: 6.1 | BE28: 6.1 | BF28: 6.1 | BG28: 6.1 | BH28: 0 | BI28: 1.57 | BK28: 12.12.2014 | BL28: 0.473 | BM28: 0.495 | BN28: 0.529 | BO28: 0.46 | BP28: -0.0973 | BR28: 12.12.2014 | BS28: 1.809 | BT28: 1.872 | BU28: 1.873 | BV28: 1.797 | BW28: -0.0509 | BX28: 1.34 | BZ28: 05.12.2014 | CA28: -0.011 | CB28: -0.025 | CC28: -0.004 | CD28: -0.03 | CE28: -0.2667 | CG28: 05.12.2014 | CH28: 0.783 | CI28: 0.749 | CJ28: 0.79 | CK28: 0.745 | CL28: 0.0156 | CM28: 0.79 | CO28: 18.12.2014 | CP28: 15.87 | CQ28: 16.19 | CR28: 16.19 | CS28: 15.56 | CT28: 0.0013 | CV28: 05.12.2014 | CW28: 12.03 | CX28: 11.22 | CY28: 12.04 | CZ28: 11.22 | DA28: 0.0627 | DB28: -3.84 | DD28: 04.12.2014 | DE28: -0.148 | DF28: -0.142 | DG28: -0.142 | DH28: -0.153 | DI28: -0.039 | DK28: 04.12.2014 | DL28: 0.301 | DM28: 0.297 | DN28: 0.302 | DO28: 0.287 | DP28: 0.0067 | DQ28: 0.45 | DS28: 18.12.2014 | DT28: 2.297 | DU28: 2.313 | DV28: 2.329 | DW28: 2.288 | DX28: 0.0241 | DZ28: 18.12.2014 | EA28: 2.934 | EB28: 2.94 | EC28: 2.972 | ED28: 2.932 | EE28: 0.0288 | EF28: 0.64 | EH28: 09.12.2014 | EI28: 3.755 | EJ28: 3.775 | EK28: 3.775 | EL28: 3.74 | EM28: -0.0027 | EO28: 09.12.2014 | EP28: 3.88 | EQ28: 3.9 | ER28: 3.9 | ES28: 3.86 | ET28: -0.0051 | EU28: 0.13 | EW28: 03.12.2014 | EX28: -0.006 | EY28: 0.005 | EZ28: 0.009 | FA28: -0.007 | FB28: -1.4615 | FD28: 03.12.2014 | FE28: 0.437 | FF28: 0.458 | FG28: 0.458 | FH28: 0.434 | FI28: 0.0355 | FJ28: 0.44 | FL28: 10.12.2014 | FM28: 3.413 | FN28: 3.36 | FO28: 3.437 | FP28: 3.36 | FQ28: 0.0249 | FS28: 10.12.2014 | FT28: 3.78 | FU28: 3.807 | FV28: 3.83 | FW28: 3.78 | FX28: -0.005 | FY28: 0.37 | GA28: 04.12.2014 | GB28: 7.11 | GC28: 7.11 | GD28: 7.11 | GE28: 7.11 | GF28: 0.0042 | GH28: 04.12.2014 | GI28: 7.435 | GJ28: 7.435 | GK28: 7.435 | GL28: 7.435 | GM28: -0.0047 | GN28: 0.32
C29: 12.12.2014 | D29: 0.544 | E29: 0.608 | F29: 0.608 | G29: 0.528 | H29: -0.1053 | J29: 12.12.2014 | K29: 2.083 | L29: 2.171 | M29: 2.171 | N29: 2.083 | O29: -0.0396 | P29: 1.54 | R29: 04.12.2014 | S29: 1.017 | T29: 1.024 | U29: 1.026 | V29: 1.017 | W29: -0.0078 | Y29: 09.12.2014 | Z29: 1.881 | AA29: 1.908 | AB29: 1.912 | AC29: 1.858 | AD29: -0.0069 | AE29: =Z29-VLOOKUP(Y29, Диапазон_3, 2, 0) -> 0.859 | AG29: 05.12.2014 | AH29: 12.41 | AI29: 12.42 | AJ29: 12.52 | AK29: 12.34 | AL29: -0.0008 | AN29: 03.12.2014 | AO29: 12.01 | AP29: 12.01 | AQ29: 12.03 | AR29: 12 | AS29: -0.0008 | AT29: -0.4 | AV29: 13.12.2014 | AW29: 4.53 | AX29: 4.53 | AY29: 4.53 | AZ29: 4.53 | BA29: 0.0022 | BC29: 12.12.2014 | BD29: 6.1 | BE29: 6.09 | BF29: 6.11 | BG29: 6.09 | BH29: 0.0049 | BI29: 1.57 | BK29: 11.12.2014 | BL29: 0.524 | BM29: 0.509 | BN29: 0.543 | BO29: 0.482 | BP29: 0.0254 | BR29: 11.12.2014 | BS29: 1.906 | BT29: 1.891 | BU29: 1.913 | BV29: 1.842 | BW29: -0.0005 | BX29: 1.38 | BZ29: 04.12.2014 | CA29: -0.015 | CB29: -0.034 | CC29: -0.01 | CD29: -0.037 | CE29: -0.5588 | CG29: 04.12.2014 | CH29: 0.771 | CI29: 0.751 | CJ29: 0.787 | CK29: 0.734 | CL29: 0.0307 | CM29: 0.79 | CO29: 17.12.2014 | CP29: 15.85 | CQ29: 18.57 | CR29: 18.57 | CS29: 15.82 | CT29: -0.1409 | CV29: 04.12.2014 | CW29: 11.32 | CX29: 11.05 | CY29: 11.32 | CZ29: 10.91 | DA29: 0.0254 | DB29: -4.53 | DD29: 03.12.2014 | DE29: -0.154 | DF29: -0.154 | DG29: -0.154 | DH29: -0.154 | DI29: 1.1096 | DK29: 03.12.2014 | DL29: 0.299 | DM29: 0.305 | DN29: 0.305 | DO29: 0.292 | DP29: -0.0132 | DQ29: 0.45 | DS29: 17.12.2014 | DT29: 2.243 | DU29: 2.261 | DV29: 2.274 | DW29: 2.22 | DX29: -0.0248 | DZ29: 17.12.2014 | EA29: 2.852 | EB29: 2.914 | EC29: 2.926 | ED29: 2.836 | EE29: -0.0326 | EF29: 0.61 | EH29: 08.12.2014 | EI29: 3.765 | EJ29: 3.755 | EK29: 3.785 | EL29: 3.745 | EM29: -0.0013 | EO29: 08.12.2014 | EP29: 3.9 | EQ29: 3.87 | ER29: 3.91 | ES29: 3.86 | ET29: -0.0026 | EU29: 0.14 | FL29: 09.12.2014 | FM29: 3.33 | FN29: 3.257 | FO29: 3.363 | FP29: 3.257 | FQ29: 0.0212 | FS29: 09.12.2014 | FT29: 3.799 | FU29: 3.823 | FV29: 3.828 | FW29: 3.793 | FX29: 0 | FY29: 0.47 | GA29: 03.12.2014 | GB29: 7.08 | GC29: 7.08 | GD29: 7.08 | GE29: 7.08 | GF29: 0.0136 | GH29: 03.12.2014 | GI29: 7.47 | GJ29: 7.47 | GK29: 7.47 | GL29: 7.47 | GM29: 0.0095 | GN29: 0.39
C30: 11.12.2014 | D30: 0.608 | E30: 0.568 | F30: 0.62 | G30: 0.56 | H30: 0.0629 | J30: 11.12.2014 | K30: 2.169 | L30: 2.167 | M30: 2.216 | N30: 2.139 | O30: -0.0018 | P30: 1.56 | R30: 03.12.2014 | S30: 1.025 | T30: 1.011 | U30: 1.037 | V30: 1.002 | W30: 0.0149 | Y30: 08.12.2014 | Z30: 1.894 | AA30: 1.967 | AB30: 1.986 | AC30: 1.889 | AD30: -0.0434 | AE30: =Z30-VLOOKUP(Y30, Диапазон_3, 2, 0) -> 0.869 | AG30: 04.12.2014 | AH30: 12.42 | AI30: 12.52 | AJ30: 12.55 | AK30: 12.33 | AL30: -0.008 | AV30: 12.12.2014 | AW30: 4.52 | AX30: 4.53 | AY30: 4.53 | AZ30: 4.52 | BA30: 0.0044 | BC30: 11.12.2014 | BD30: 6.07 | BE30: 6.09 | BF30: 6.13 | BG30: 6.07 | BH30: -0.0016 | BI30: 1.55 | BK30: 10.12.2014 | BL30: 0.511 | BM30: 0.511 | BN30: 0.542 | BO30: 0.5 | BP30: -0.0097 | BR30: 10.12.2014 | BS30: 1.907 | BT30: 1.893 | BU30: 1.936 | BV30: 1.89 | BW30: 0.0058 | BX30: 1.4 | BZ30: 03.12.2014 | CA30: -0.034 | CB30: -0.028 | CC30: -0.02 | CD30: -0.037 | CE30: 0.0968 | CG30: 03.12.2014 | CH30: 0.748 | CI30: 0.75 | CJ30: 0.765 | CK30: 0.734 | CL30: 0.0013 | CM30: 0.78 | CO30: 16.12.2014 | CP30: 18.45 | CQ30: 18.43 | CR30: 18.47 | CS30: 18.43 | CT30: 0.2637 | CV30: 03.12.2014 | CW30: 11.04 | CX30: 10.74 | CY30: 11.04 | CZ30: 10.74 | DA30: 0.0279 | DB30: -7.41 | DS30: 16.12.2014 | DT30: 2.3 | DU30: 2.321 | DV30: 2.322 | DW30: 2.288 | DX30: 0.0141 | DZ30: 16.12.2014 | EA30: 2.948 | EB30: 2.987 | EC30: 2.987 | ED30: 2.939 | EE30: -0.0007 | EF30: 0.65 | EH30: 07.12.2014 | EI30: 3.77 | EJ30: 3.755 | EK30: 3.785 | EL30: 3.745 | EM30: 0.0067 | EO30: 07.12.2014 | EP30: 3.91 | EQ30: 3.87 | ER30: 3.91 | ES30: 3.86 | ET30: 0.013 | EU30: 0.14 | FL30: 08.12.2014 | FM30: 3.261 | FN30: 3.22 | FO30: 3.3 | FP30: 3.22 | FQ30: 0.0203 | FS30: 08.12.2014 | FT30: 3.799 | FU30: 3.83 | FV30: 3.83 | FW30: 3.755 | FX30: 0.0312 | FY30: 0.54
C31: 10.12.2014 | D31: 0.572 | E31: 0.616 | F31: 0.628 | G31: 0.568 | H31: -0.0714 | J31: 10.12.2014 | K31: 2.173 | L31: 2.218 | M31: 2.23 | N31: 2.155 | O31: -0.0181 | P31: 1.6 | Y31: 06.12.2014 | Z31: 1.98 | AA31: 1.958 | AB31: 1.98 | AC31: 1.958 | AD31: 0.0112 | AE31: =Z31-VLOOKUP(Y31, Диапазон_3, 2, 0) ->  | AG31: 03.12.2014 | AH31: 12.52 | AI31: 12.59 | AJ31: 12.73 | AK31: 12.5 | AL31: -0.0056 | AV31: 11.12.2014 | AW31: 4.5 | AX31: 4.53 | AY31: 4.6 | AZ31: 4.52 | BA31: -0.0044 | BC31: 10.12.2014 | BD31: 6.08 | BE31: 6.06 | BF31: 6.14 | BG31: 6.06 | BH31: 0.0066 | BI31: 1.58 | BK31: 09.12.2014 | BL31: 0.516 | BM31: 0.531 | BN31: 0.544 | BO31: 0.498 | BP31: -0.0497 | BR31: 09.12.2014 | BS31: 1.896 | BT31: 1.944 | BU31: 1.952 | BV31: 1.888 | BW31: -0.0327 | BX31: 1.38 | CO31: 15.12.2014 | CP31: 14.6 | CQ31: 14.15 | CR31: 14.6 | CS31: 14.11 | CT31: 0.0823 | DS31: 15.12.2014 | DT31: 2.268 | DU31: 2.264 | DV31: 2.276 | DW31: 2.214 | DX31: 0.0207 | DZ31: 15.12.2014 | EA31: 2.95 | EB31: 2.943 | EC31: 2.973 | ED31: 2.902 | EE31: 0.0117 | EF31: 0.68 | EH31: 05.12.2014 | EI31: 3.745 | EJ31: 3.775 | EK31: 3.775 | EL31: 3.715 | EM31: -0.0053 | EO31: 05.12.2014 | EP31: 3.86 | EQ31: 3.89 | ER31: 3.89 | ES31: 3.83 | ET31: -0.0052 | EU31: 0.12 | FL31: 05.12.2014 | FM31: 3.196 | FN31: 3.177 | FO31: 3.22 | FP31: 3.177 | FQ31: 0.0047 | FS31: 05.12.2014 | FT31: 3.684 | FU31: 3.613 | FV31: 3.708 | FW31: 3.613 | FX31: 0.0163 | FY31: 0.49
C32: 09.12.2014 | D32: 0.616 | E32: 0.636 | F32: 0.64 | G32: 0.584 | H32: -0.0238 | J32: 09.12.2014 | K32: 2.213 | L32: 2.264 | M32: 2.271 | N32: 2.187 | O32: -0.0204 | P32: 1.6 | Y32: 05.12.2014 | Z32: 1.958 | AA32: 1.919 | AB32: 1.981 | AC32: 1.917 | AD32: 0.0267 | AE32: =Z32-VLOOKUP(Y32, Диапазон_3, 2, 0) -> 0.912 | AV32: 10.12.2014 | AW32: 4.52 | AX32: 4.52 | AY32: 4.57 | AZ32: 4.52 | BA32: 0.0044 | BC32: 09.12.2014 | BD32: 6.04 | BE32: 6.08 | BF32: 6.1 | BG32: 6.04 | BH32: -0.0049 | BI32: 1.52 | BK32: 08.12.2014 | BL32: 0.543 | BM32: 0.596 | BN32: 0.604 | BO32: 0.536 | BP32: -0.098 | BR32: 08.12.2014 | BS32: 1.96 | BT32: 2.029 | BU32: 2.05 | BV32: 1.96 | BW32: -0.0297 | BX32: 1.42 | CO32: 14.12.2014 | CP32: 13.49 | CQ32: 13.49 | CR32: 13.49 | CS32: 13.49 | CT32: 0 | DS32: 14.12.2014 | DT32: 2.222 | DU32: 2.294 | DV32: 2.303 | DW32: 2.214 | DX32: -0.0314 | DZ32: 14.12.2014 | EA32: 2.916 | EB32: 2.958 | EC32: 2.973 | ED32: 2.902 | EE32: -0.0142 | EF32: 0.69 | EH32: 04.12.2014 | EI32: 3.765 | EJ32: 3.78 | EK32: 3.79 | EL32: 3.765 | EM32: -0.0013 | EO32: 04.12.2014 | EP32: 3.88 | EQ32: 3.91 | ER32: 3.915 | ES32: 3.88 | ET32: -0.0077 | EU32: 0.12 | FL32: 04.12.2014 | FM32: 3.181 | FN32: 3.183 | FO32: 3.19 | FP32: 3.172 | FQ32: 0.0038 | FS32: 04.12.2014 | FT32: 3.625 | FU32: 3.59 | FV32: 3.626 | FW32: 3.59 | FX32: 0.012 | FY32: 0.44
C33: 08.12.2014 | D33: 0.631 | E33: 0.651 | F33: 0.675 | G33: 0.627 | H33: -0.0371 | J33: 08.12.2014 | K33: 2.259 | L33: 2.31 | M33: 2.347 | N33: 2.243 | O33: -0.0228 | P33: 1.63 | Y33: 04.12.2014 | Z33: 1.907 | AA33: 1.937 | AB33: 1.955 | AC33: 1.907 | AD33: -0.017 | AE33: =Z33-VLOOKUP(Y33, Диапазон_3, 2, 0) -> 0.89 | AV33: 09.12.2014 | AW33: 4.5 | AX33: 4.51 | AY33: 4.54 | AZ33: 4.49 | BA33: 0.0022 | BC33: 08.12.2014 | BD33: 6.07 | BE33: 6.01 | BF33: 6.16 | BG33: 6 | BH33: 0.0083 | BI33: 1.57 | BK33: 07.12.2014 | BL33: 0.602 | BM33: 0.591 | BN33: 0.603 | BO33: 0.591 | BP33: 0.0273 | BR33: 06.12.2014 | BS33: 2.02 | BT33: 2.028 | BU33: 2.028 | BV33: 2.015 | BW33: 0.001 | BX33: 1.42 | CO33: 12.12.2014 | CP33: 13.49 | CQ33: 13.41 | CR33: 13.49 | CS33: 13.41 | CT33: 0.0361 | DS33: 13.12.2014 | DT33: 2.294 | DU33: 2.285 | DV33: 2.303 | DW33: 2.273 | DX33: -0.0078 | DZ33: 13.12.2014 | EA33: 2.958 | EB33: 2.943 | EC33: 2.968 | ED33: 2.938 | EE33: 0.0165 | EF33: 0.66 | EH33: 03.12.2014 | EI33: 3.77 | EJ33: 3.79 | EK33: 3.805 | EL33: 3.77 | EM33: -0.0026 | EO33: 03.12.2014 | EP33: 3.91 | EQ33: 3.91 | ER33: 3.93 | ES33: 3.9 | ET33: 0.0026 | EU33: 0.14 | FL33: 03.12.2014 | FM33: 3.169 | FN33: 3.157 | FO33: 3.177 | FP33: 3.157 | FQ33: 0.0041 | FS33: 03.12.2014 | FT33: 3.582 | FU33: 3.565 | FV33: 3.6 | FW33: 3.565 | FX33: 0.0102 | FY33: 0.41
C34: 07.12.2014 | D34: 0.655 | E34: 0.643 | F34: 0.659 | G34: 0.643 | H34: 0.0191 | J34: 07.12.2014 | K34: 2.312 | L34: 2.307 | M34: 2.319 | N34: 2.307 | O34: 0.0021 | P34: 1.66 | Y34: 03.12.2014 | Z34: 1.94 | AA34: 1.968 | AB34: 1.973 | AC34: 1.94 | AD34: -0.0087 | AE34: =Z34-VLOOKUP(Y34, Диапазон_3, 2, 0) -> 0.915 | AV34: 08.12.2014 | AW34: 4.49 | AX34: 4.44 | AY34: 4.54 | AZ34: 4.42 | BA34: 0.0158 | BC34: 06.12.2014 | BD34: 6.02 | BE34: 6.02 | BF34: 6.02 | BG34: 6.02 | BH34: 0.0033 | BI34: 1.53 | BK34: 06.12.2014 | BL34: 0.586 | BM34: 0.586 | BN34: 0.586 | BO34: 0.586 | BP34: 0.0138 | BR34: 05.12.2014 | BS34: 2.018 | BT34: 1.979 | BU34: 2.03 | BV34: 1.971 | BW34: 0.0146 | BX34: 1.43 | CO34: 11.12.2014 | CP34: 13.02 | CQ34: 13.11 | CR34: 13.11 | CS34: 13.02 | CT34: -0.0121 | DS34: 12.12.2014 | DT34: 2.312 | DU34: 2.331 | DV34: 2.338 | DW34: 2.294 | DX34: 0.0289 | DZ34: 12.12.2014 | EA34: 2.91 | EB34: 2.931 | EC34: 2.955 | ED34: 2.899 | EE34: 0.0146 | EF34: 0.6
C35: 05.12.2014 | D35: 0.643 | E35: 0.548 | F35: 0.651 | G35: 0.544 | H35: 0.1842 | J35: 05.12.2014 | K35: 2.307 | L35: 2.245 | M35: 2.331 | N35: 2.243 | O35: 0.0318 | P35: 1.66 | AV35: 06.12.2014 | AW35: 4.42 | AX35: 4.42 | AY35: 4.42 | AZ35: 4.42 | BA35: 0.0045 | BC35: 05.12.2014 | BD35: 6 | BE35: 5.95 | BF35: 6.04 | BG35: 5.91 | BH35: 0.0169 | BI35: 1.58 | BK35: 05.12.2014 | BL35: 0.578 | BM35: 0.53 | BN35: 0.601 | BO35: 0.528 | BP35: 0.0684 | BR35: 04.12.2014 | BS35: 1.989 | BT35: 2.003 | BU35: 2.005 | BV35: 1.956 | BW35: -0.0114 | BX35: 1.41 | CO35: 10.12.2014 | CP35: 13.18 | CQ35: 13.27 | CR35: 13.29 | CS35: 13.15 | CT35: -0.0142 | DS35: 11.12.2014 | DT35: 2.247 | DU35: 2.221 | DV35: 2.286 | DW35: 2.215 | DX35: -0.0205 | DZ35: 11.12.2014 | EA35: 2.868 | EB35: 2.862 | EC35: 2.894 | ED35: 2.852 | EE35: -0.0327 | EF35: 0.62
C36: 04.12.2014 | D36: 0.543 | E36: 0.559 | F36: 0.559 | G36: 0.54 | H36: -0.0286 | J36: 04.12.2014 | K36: 2.236 | L36: 2.282 | M36: 2.298 | N36: 2.236 | O36: -0.0202 | P36: 1.69 | AV36: 05.12.2014 | AW36: 4.4 | AX36: 4.34 | AY36: 4.5 | AZ36: 4.3 | BA36: 0.028 | BC36: 04.12.2014 | BD36: 5.9 | BE36: 5.92 | BF36: 5.95 | BG36: 5.9 | BH36: -0.0017 | BI36: 1.5 | BK36: 04.12.2014 | BL36: 0.541 | BM36: 0.574 | BN36: 0.576 | BO36: 0.517 | BP36: -0.0542 | BR36: 03.12.2014 | BS36: 2.012 | BT36: 1.974 | BU36: 2.017 | BV36: 1.945 | BW36: 0.0187 | BX36: 1.47 | CO36: 09.12.2014 | CP36: 13.37 | CQ36: 13.37 | CR36: 13.52 | CS36: 13.37 | CT36: 0.0175 | DS36: 10.12.2014 | DT36: 2.294 | DU36: 2.307 | DV36: 2.316 | DW36: 2.287 | DX36: -0.0078 | DZ36: 10.12.2014 | EA36: 2.965 | EB36: 2.973 | EC36: 2.985 | ED36: 2.959 | EE36: -0.0221 | EF36: 0.67
C37: 03.12.2014 | D37: 0.559 | E37: 0.543 | F37: 0.563 | G37: 0.539 | H37: 0.0371 | J37: 03.12.2014 | K37: 2.282 | L37: 2.292 | M37: 2.306 | N37: 2.278 | O37: -0.0052 | P37: 1.72 | AV37: 04.12.2014 | AW37: 4.28 | AX37: 4.3 | AY37: 4.32 | AZ37: 4.27 | BA37: 0.0023 | BC37: 03.12.2014 | BD37: 5.91 | BE37: 5.92 | BF37: 5.98 | BG37: 5.89 | BH37: 0.0017 | BI37: 1.63 | BK37: 03.12.2014 | BL37: 0.572 | BM37: 0.543 | BN37: 0.589 | BO37: 0.515 | BP37: 0.0495 | CO37: 08.12.2014 | CP37: 13.14 | CQ37: 12.23 | CR37: 13.14 | CS37: 12.23 | CT37: 0.0605 | DS37: 09.12.2014 | DT37: 2.312 | DU37: 2.312 | DV37: 2.34 | DW37: 2.294 | DX37: -0.022 | DZ37: 09.12.2014 | EA37: 3.032 | EB37: 3.014 | EC37: 3.052 | ED37: 3.002 | EE37: -0.0185 | EF37: 0.72
AV38: 03.12.2014 | AW38: 4.27 | AX38: 4.27 | AY38: 4.31 | AZ38: 4.26 | BA38: 0.0047 | CO38: 06.12.2014 | CP38: 12.39 | CQ38: 12.39 | CR38: 12.39 | CS38: 12.39 | CT38: 0 | DS38: 08.12.2014 | DT38: 2.364 | DU38: 2.371 | DV38: 2.371 | DW38: 2.34 | DX38: 0.0098 | DZ38: 08.12.2014 | EA38: 3.089 | EB38: 3.083 | EC38: 3.089 | ED38: 3.052 | EE38: 0.0082 | EF38: 0.73
CO39: 05.12.2014 | CP39: 12.39 | CQ39: 12.39 | CR39: 12.39 | CS39: 12.39 | CT39: 0.0626 | DS39: 07.12.2014 | DT39: 2.341 | DU39: 2.341 | DV39: 2.371 | DW39: 2.315 | DX39: 0 | DZ39: 07.12.2014 | EA39: 3.064 | EB39: 3.061 | EC39: 3.089 | ED39: 3.04 | EE39: 0.001 | EF39: 0.72
CO40: 04.12.2014 | CP40: 11.66 | CQ40: 11.66 | CR40: 11.66 | CS40: 11.66 | CT40: 0.0148 | DS40: 06.12.2014 | DT40: 2.341 | DU40: 2.353 | DV40: 2.36 | DW40: 2.315 | DX40: 0.0069 | DZ40: 06.12.2014 | EA40: 3.061 | EB40: 3.079 | EC40: 3.079 | ED40: 3.04 | EE40: 0.0023 | EF40: 0.72
CO41: 03.12.2014 | CP41: 11.49 | CQ41: 11.54 | CR41: 11.54 | CS41: 11.32 | CT41: 0.037 | DS41: 05.12.2014 | DT41: 2.325 | DU41: 2.282 | DV41: 2.338 | DW41: 2.277 | DX41: -0.0206 | DZ41: 05.12.2014 | EA41: 3.054 | EB41: 3.005 | EC41: 3.064 | ED41: 2.996 | EE41: -0.0065 | EF41: 0.73
DS42: 04.12.2014 | DT42: 2.374 | DU42: 2.37 | DV42: 2.393 | DW42: 2.342 | DX42: -0.0071 | DZ42: 04.12.2014 | EA42: 3.074 | EB42: 3.083 | EC42: 3.085 | ED42: 3.042 | EE42: -0.0065 | EF42: 0.7
DS43: 03.12.2014 | DT43: 2.391 | DU43: 2.45 | DV43: 2.479 | DW43: 2.375 | DX43: -0.0136 | DZ43: 03.12.2014 | EA43: 3.094 | EB43: 3.142 | EC43: 3.165 | ED43: 3.085 | EE43: -0.0035 | EF43: 0.7
